Cogmind - Beta 17 --- EXPLORER MODE // 2026.07.25 @ 22:11:52 // Winter2019/RPGLIKE Player: Grimbling Result: Assimilated 0b10! Performance ------------- Evolutions (9) 4500 Regions Visited (31) 6200 Robots Destroyed (298) 1490 Value Destroyed (15590) 15590 Prototype IDs (369) 7380 Alien Tech Used (0) 0 Bonus (33710) 33710 TOTAL SCORE: 68870 Bonus ------- High Alert Combat Kills 581 Follower Combat Kills 729 Hunted by Unchained 500 Met Data Miner 300 Met Imprinter 300 Met Warlord at Base 500 MAIN.C Attacked Warlord 500 Built Enhanced Grunts 300 Met R17 at Cetus 500 Met R17 at Research 2000 Destroyed MAIN.C Guards 500 Met MAIN.C 5000 Destroyed MAIN.C Shell 5000 Destroyed MAIN.C 10000 Used 0b10 Conduit 2000 Met Warlord at Command 2000 Win 3000 Cogmind --------- Core Integrity 637/750 Matter 500/500 Energy 529/700 System Corruption 1% Temperature Cool (24) Movement Flying (14) Location 0b10 Command Parts ------- > --- POWER (2) -------- Vortex Chain Reactor > --- PROPULSION (4) --- Cooled Impulse Thruster Experimental Q-thruster Experimental Q-thruster Experimental Q-thruster > --- UTILITY (16) ----- Advanced Signal Interpreter Advanced Target Analyzer Experimental Core Analyzer Experimental Armor Integrity Analyzer Femtoactuators Advanced Actuator Array Advanced Force Booster Stasis Canceller Experimental Reaction Control System Experimental Phase Shifter Graphene Brace Experimental Thermal Shield Advanced Force Field Advanced Point Defense System Advanced Point Defense System Improved Dynamic Insulation System > --- WEAPON (4) ------- Molecular Scythe Molecular Scythe Centrium Greatsword > --- INVENTORY (10) --- Protomatter-100 Protomatter-98 Protomatter-97 Protomatter-95 Protomatter-20 Advanced Trap Scanner Advanced Terrain Scanner Fusion Bomb Launcher Advanced Remote Datajack Peak State ------------ > --- POWER ------------ Vortex Chain Reactor > --- PROPULSION ------- Cooled Impulse Thruster Experimental Q-thruster Experimental Q-thruster Experimental Q-thruster > --- UTILITY ---------- Advanced Signal Interpreter Advanced Target Analyzer Experimental Core Analyzer Experimental Armor Integrity Analyzer Femtoactuators Advanced Actuator Array Advanced Force Booster Stasis Canceller Experimental Reaction Control System Experimental Phase Shifter Graphene Brace Experimental Thermal Shield Advanced Force Field Advanced Point Defense System Advanced Point Defense System Improved Dynamic Insulation System > --- WEAPON ----------- Cooled Nova Cannon Molecular Scythe Centrium Greatsword > --- INVENTORY -------- Protomatter Protomatter Protomatter Protomatter Protomatter Advanced Trap Scanner Advanced Terrain Scanner Fusion Bomb Launcher Advanced Remote Datajack Molecular Scythe [Rating: 229] Favorites ----------- Power Vortex Chain Reactor Engine Light Angular Momentum Engine Power Core Light Fission Core Reactor Vortex Chain Reactor Propulsion Experimental Q-thruster Leg Aluminum Leg Flight Unit Experimental Q-thruster Utility Microactuators Device Microactuators Processor Target Analyzer Protection Light Armor Plating Weapon Great Axe Energy Cannon Cooled Nova Cannon Ballistic Gun Light Assault Rifle Launcher Precision Grenade Launcher Special Weapon Advanced Remote Datajack Slashing Weapon Great Axe Piercing Weapon Lance Special Melee Weapon Improved Datajack Build | -11 -10 -10 -9 -9 -9 -8 -8 -8 -7 -7 -7 -7 -6 -6 -6 -6 -6 -5 -5 -5 -5 -5 -4 -4 -4 -4 -3 -2 -2 -1 -1 ------- Run | Yrd Mat Min Mat Min Exi Min Mat Sto Fac Low Low Dat Pro Fac Low Low Zio Pro Fac Upp Upp War Pro Fac Ext Cet Res Res Tes Acc Com Slots Evolved 22 | 5 2 . . 3 . 1 2 . 2 . 1 . . 3 2 . . . . . . 1 . . . . . . . . . Power 1 | . . . . . . . . . . . . . . 1 . . . . . . . . . . . . . . . . . Propulsion 3 | 1 2 . . . . . . . . . . . . . . . . . . . . . . . . . . . . . . Utility 15 | 3 . . . 3 . . 2 . 2 . . . . 2 2 . . . . . . 1 . . . . . . . . . Weapon 3 | 1 . . . . . 1 . . . . 1 . . . . . . . . . . . . . . . . . . . . Parts Attached 128 | 8 7 1 3 6 . 1 11 4 5 2 2 . 2 8 5 1 . . 1 1 2 7 1 . 4 . 12 4 11 14 5 Power 7 | 1 . . 1 . . 1 1 1 . . . . . . 1 . . . . . . 1 . . . . . . . . . Engine 4 | 1 . . 1 . . . 1 1 . . . . . . . . . . . . . . . . . . . . . . . Core 2 | . . . . . . 1 . . . . . . . . 1 . . . . . . . . . . . . . . . . Reactor 1 | . . . . . . . . . . . . . . . . . . . . . . 1 . . . . . . . . . Propulsion 30 | 2 4 1 . . . . 4 1 1 . . . . 3 . . . . . . . 2 1 . . . 2 3 5 1 . Treads . | . . . . . . . . . . . . . . . . . . . . . . . . . . . . . . . . Leg 2 | 2 . . . . . . . . . . . . . . . . . . . . . . . . . . . . . . . Wheel . | . . . . . . . . . . . . . . . . . . . . . . . . . . . . . . . . Hover . | . . . . . . . . . . . . . . . . . . . . . . . . . . . . . . . . Flight 28 | . 4 1 . . . . 4 1 1 . . . . 3 . . . . . . . 2 1 . . . 2 3 5 1 . Utility 62 | 3 1 . . 5 . . 3 2 3 1 . . 1 5 4 . . . . 1 1 3 . . 2 . 6 1 4 13 3 Device 42 | 1 . . . 1 . . 1 1 2 1 . . 1 5 1 . . . . 1 1 2 . . 1 . 6 1 3 10 3 Storage . | . . . . . . . . . . . . . . . . . . . . . . . . . . . . . . . . Processor 15 | 1 . . . 2 . . 2 1 1 . . . . . 2 . . . . . . 1 . . 1 . . . 1 3 . Hackware . | . . . . . . . . . . . . . . . . . . . . . . . . . . . . . . . . Protection 5 | 1 1 . . 2 . . . . . . . . . . 1 . . . . . . . . . . . . . . . . Artifact . | . . . . . . . . . . . . . . . . . . . . . . . . . . . . . . . . Weapon 29 | 2 2 . 2 1 . . 3 . 1 1 2 . 1 . . 1 . . 1 . 1 1 . . 2 . 4 . 2 . 2 Energy Gun . | . . . . . . . . . . . . . . . . . . . . . . . . . . . . . . . . Energy Cannon 1 | . . . . . . . . . . . . . . . . . . . . . . . . . . . . . . . 1 Ballistic Gun 5 | 2 . . 2 1 . . . . . . . . . . . . . . . . . . . . . . . . . . . Ballistic Cannon . | . . . . . . . . . . . . . . . . . . . . . . . . . . . . . . . . Launcher 2 | . . . . . . . . . 1 . . . . . . . . . . . . . . . . . . . . . 1 Special Weapon 1 | . . . . . . . . . . . . . . . . . . . . . . . . . . . . . 1 . . Impact Weapon . | . . . . . . . . . . . . . . . . . . . . . . . . . . . . . . . . Slashing Weapon 16 | . 2 . . . . . 2 . . 1 2 . 1 . . 1 . . 1 . 1 . . . 1 . 3 . 1 . . Piercing Weapon 3 | . . . . . . . . . . . . . . . . . . . . . . 1 . . 1 . 1 . . . . Special Melee Weapon 1 | . . . . . . . 1 . . . . . . . . . . . . . . . . . . . . . . . . Unidentified Prototypes 27 | . . . 1 1 . . . 1 2 . . . . . . . . . . . . 6 . . . . 4 1 7 3 1 Parts Lost . | . . . . . . . . . . . . . . . . . . . . . . . . . . . . . . . . Power . | . . . . . . . . . . . . . . . . . . . . . . . . . . . . . . . . Propulsion . | . . . . . . . . . . . . . . . . . . . . . . . . . . . . . . . . Utility . | . . . . . . . . . . . . . . . . . . . . . . . . . . . . . . . . Weapon . | . . . . . . . . . . . . . . . . . . . . . . . . . . . . . . . . Highest Loss Streak . | . . . . . . . . . . . . . . . . . . . . . . . . . . . . . . . . To Critical Strikes . | . . . . . . . . . . . . . . . . . . . . . . . . . . . . . . . . Average Backups 2 | . 1 1 1 3 3 2 1 1 1 . 1 1 1 1 1 1 2 1 2 2 1 2 1 1 1 2 2 4 4 4 4 Power . | . . . . . 1 . . . . . . . . . . . . . . . . . . . . . . . . . . Propulsion . | . 1 . . . . . . . . . . . . . . . . . . . . . . . . . . . . . . Utility . | . . . . 1 . . . . . . . . . . . . . . . . . . . . . 1 1 1 1 2 2 Weapon 1 | . . 1 1 1 1 1 1 1 1 . 1 1 1 1 1 1 2 1 2 1 1 1 . 1 1 1 1 1 1 1 1 Tool/Special . | . . . . . . . . . . . . . . . . . . . . . . . . . . . . . . . . Unused Backups 16 | . 1 . . . 6 . . 1 . 1 . . . . . . . . . 2 1 . . . . . 1 3 . . . Power 3 | . . . . . 3 . . . . . . . . . . . . . . . . . . . . . . . . . . Propulsion 2 | . 1 . . . . . . . . . . . . . . . . . . 1 . . . . . . . . . . . Utility 2 | . . . . . 1 . . . . . . . . . . . . . . . . . . . . . . 1 . . . Weapon 6 | . . . . . 1 . . 1 . 1 . . . . . . . . . 1 1 . . . . . 1 . . . . Tool/Special 3 | . . . . . 1 . . . . . . . . . . . . . . . . . . . . . . 2 . . . Average Slot Usage (%) 94 | . 89 100 100 97 92 86 90 94 99 97 94 95 99 99 98 94 92 92 91 92 95 93 91 92 92 96 95 96 93 91 91 Engine 3 | . 10 9 9 8 7 3 3 5 5 5 5 5 5 4 4 4 4 4 4 4 4 1 . . . . . . . . . Reactor 1 | . . . . . . . . . . . . . . . . . . . . . . 1 3 3 3 3 3 3 3 3 3 Flight 18 | . 8 36 36 33 28 26 24 22 21 21 20 20 20 19 16 16 16 16 16 16 16 15 14 15 15 15 15 15 15 15 15 Device 33 | . 10 9 9 8 7 6 5 13 25 26 25 25 29 30 34 36 36 36 36 36 39 41 42 42 43 46 45 46 46 45 46 Processor 16 | . 10 9 9 12 21 20 23 21 23 24 20 20 20 19 16 16 16 16 16 16 16 15 15 15 13 15 15 15 15 15 15 Protection 4 | . 11 18 18 16 14 13 12 11 7 5 5 5 5 4 4 4 4 4 4 4 4 3 3 3 2 . . . . . . Ballistic Gun 2 | . 21 18 18 16 14 13 1 . . . . . . . . . . . . . . . . . . . . . . . . Slashing Weapon 10 | . . . . . . . 10 11 10 11 17 20 19 19 16 14 12 12 11 12 12 11 11 11 11 11 9 11 10 11 10 Peak Build Rating 229 | 10 13 13 18 31 22 23 40 49 63 65 68 68 74 96 110 112 112 112 112 120 119 141 141 140 150 150 176 183 194 220 229 Average Rating 113 | 7 10 13 15 19 21 21 30 43 58 63 66 68 72 79 103 110 112 112 111 112 115 129 139 140 142 150 160 180 187 211 222 On Entrance 90 | . 10 13 13 18 22 21 23 40 47 63 63 68 68 73 96 110 112 112 112 112 115 113 140 140 140 150 150 175 183 189 219 Avg Prop Armor Cover (%) . | . . . . . . . . . . . . . . . . . . . . . . . . . . . . . . . . Naked Turns . | . . . . . . . . . . . . . . . . . . . . . . . . . . . . . . . . Heaviest Build 112 | 7 8 8 16 18 18 18 21 26 35 35 37 37 43 51 61 66 66 66 66 73 78 91 91 91 95 91 97 96 96 97 112 Greatest Support 105 | 30 40 36 36 36 36 36 38 39 40 40 40 40 50 73 73 73 73 73 73 73 83 96 97 97 97 97 100 100 102 100 105 Greatest Overweight (x) 1 | . . . . . . . . . . . 1 . . . . . . . . . . . . . . . . 1 . . 1 Average Overweight (x) . | . . . . . . . . . . . . . . . . . . . . . . . . . . . . . . . . Largest Inventory Capacity 10 | . 5 5 5 8 8 8 8 8 8 8 8 8 8 8 8 8 8 8 8 8 8 8 8 8 8 8 10 10 10 10 10 Average Capacity 8 | . 4 5 5 5 8 8 8 8 8 8 8 8 8 8 8 8 8 8 8 8 8 8 8 8 8 8 9 10 10 10 10 Most Carried 10 | . 5 3 4 5 6 5 8 8 8 8 8 8 8 8 8 8 8 8 8 8 8 8 6 5 6 6 10 10 10 10 10 Average Carried 6 | . 1 1 2 3 4 3 5 5 4 5 7 8 7 8 7 7 8 7 7 7 6 7 4 5 4 6 7 9 7 8 9 Final Capacity 10 | . 5 5 5 8 8 8 8 8 8 8 8 8 8 8 8 8 8 8 8 8 8 8 8 8 8 8 10 10 10 10 10 Final Carried 10 | . 3 2 4 5 2 5 6 8 4 7 8 8 8 8 6 8 8 7 8 6 7 7 5 5 6 6 9 10 7 9 9 Class Distribution -------------------- 60% | Wizard-Scout 35% | Wizard-Ninja Dominant Class ---------------- Wizard-Skirmisher | -10/Materials Wizard-Scout | -10/Mines Wizard-Scout | -9/Materials Wizard-Scout | -9/Mines Wizard-Scout | -9/Exiles Wizard-Scout | -8/Mines Wizard-Scout | -8/Materials Wizard-Scout | -8/Storage Wizard-Scout | -7/Factory Wizard-Scout | -7/Lower Caves Wizard-Scout | -7/Lower Caves Wizard-Scout | -7/Data Miner Wizard-Scout | -6/Proximity Caves Wizard-Scout | -6/Factory Wizard-Scout | -6/Lower Caves Wizard-Scout | -6/Lower Caves Wizard-Scout | -6/Zion Wizard-Scout | -5/Proximity Caves Wizard-Scout | -5/Factory Wizard-Scout | -5/Upper Caves Wizard-Scout | -5/Upper Caves Wizard-Ninja | -5/Warlord Wizard-Ninja | -4/Proximity Caves Wizard-Ninja | -4/Factory Wizard-Ninja | -4/Extension Wizard-Ninja | -4/Cetus Wizard-Ninja | -3/Research Wizard-Ninja | -2/Research Wizard-Ninja | -2/Testing Wizard-Ninja | -1/Access Wizard-Scout | -1/Command Resources | -11 -10 -10 -9 -9 -9 -8 -8 -8 -7 -7 -7 -7 -6 -6 -6 -6 -6 -5 -5 -5 -5 -5 -4 -4 -4 -4 -3 -2 -2 -1 -1 ----------- Run | Yrd Mat Min Mat Min Exi Min Mat Sto Fac Low Low Dat Pro Fac Low Low Zio Pro Fac Upp Upp War Pro Fac Ext Cet Res Res Tes Acc Com Matter Collected 2707 | 377 199 74 133 94 . 180 134 50 80 20 122 . 128 20 110 10 . . 30 20 30 . 90 . 30 20 170 40 180 160 206 Remotely . | . . . . . . . . . . . . . . . . . . . . . . . . . . . . . . . . Salvage Created 15591 | 112 164 72 470 51 . 240 554 632 138 373 149 . 697 254 750 314 . 128 . 589 196 . 244 . 1174 262 836 1100 422 3139 2531 Parts 833 | 11 15 11 25 6 . 9 38 43 6 17 22 . 36 11 24 18 . 10 . 23 16 . 6 . 49 16 37 61 43 155 125 Haulers Intercepted 8 | . . . 1 . . . 1 . 1 . . . . 1 . . . . . 1 . . . . . . . 1 . 2 . Recyclers Shooed . | . . . . . . . . . . . . . . . . . . . . . . . . . . . . . . . . Parts Field Recycled . | . . . . . . . . . . . . . . . . . . . . . . . . . . . . . . . . Retrieved Matter . | . . . . . . . . . . . . . . . . . . . . . . . . . . . . . . . . Parts Self-Destructed . | . . . . . . . . . . . . . . . . . . . . . . . . . . . . . . . . Prevented . | . . . . . . . . . . . . . . . . . . . . . . . . . . . . . . . . Parts Restored . | . . . . . . . . . . . . . . . . . . . . . . . . . . . . . . . . Kills | -11 -10 -10 -9 -9 -9 -8 -8 -8 -7 -7 -7 -7 -6 -6 -6 -6 -6 -5 -5 -5 -5 -5 -4 -4 -4 -4 -3 -2 -2 -1 -1 ------- Run | Yrd Mat Min Mat Min Exi Min Mat Sto Fac Low Low Dat Pro Fac Low Low Zio Pro Fac Upp Upp War Pro Fac Ext Cet Res Res Tes Acc Com Combat Hostiles Destroyed 243 | . 6 4 6 5 . 4 11 12 1 4 9 . 23 1 9 6 . 5 . 11 6 . 3 . 14 4 8 12 7 41 31 Melee 210 | . . . . . . . 10 12 1 4 5 . 20 1 9 6 . 5 . 11 6 . 3 . 14 4 8 12 7 41 31 Guns 26 | . 6 4 6 5 . 4 1 . . . . . . . . . . . . . . . . . . . . . . . . AOE 7 | . . . . . . . . . . . 4 . 3 . . . . . . . . . . . . . . . . . . Classes Destroyed 22 | 3 2 . 4 . . . . . 1 . 3 . 2 . . 2 . . . . . . . . . . 2 1 1 . 1 Worker 2 | 1 . . . . . . . . . . . . . . . . . . . . . . . . . . . 1 . . . Builder 1 | . . . . . . . . . . . . . . . . . . . . . . . . . . . . 1 . . . Tunneler 2 | 2 . . . . . . . . . . . . . . . . . . . . . . . . . . . . . . . Hauler 8 | . . . 1 . . . 1 . 1 . . . . 1 . . . . . 1 . . . . . . . 1 . 2 . Recycler 5 | 1 1 . . . . . . . . . . . . . . . . . . . . . . . 1 . . 1 . . 1 Minesweeper 1 | . . . . . . . . . . . . . . . . 1 . . . . . . . . . . . . . . . Operator 7 | . . . . . . . . . . . . . . . . . . . . . . . . . . . 2 1 1 1 2 Drone 2 | . . . . . . . . . . . . . 2 . . . . . . . . . . . . . . . . . . Watcher 28 | . . . 3 . . . . 1 1 . . . . 2 . . . . . . . . . . 3 2 4 3 1 4 4 Swarmer 65 | . 4 4 1 3 . . 2 1 . . 3 . 8 . 4 2 . 3 . 4 1 . . . 3 . . 6 3 13 . Cutter 1 | . . . . . . . . . . . . . . . . . . . . . . . . . . . . . . . 1 Grunt 54 | . 2 . 2 . . 3 4 5 . 3 4 . 9 . . . . 1 . 7 2 . . . 4 . 4 . . 4 . Brawler 1 | . . . . . . . . . . . . . . . . . . . . . . . . . . . 1 . . . . Duelist 3 | . . . 1 . . 1 . . . . . . 1 . . . . . . . . . . . . . . . . . . Researcher 1 | . . . . . . . . . . . . . . . . . . . . . . . . . . . . . 1 . . Sentry 45 | . . . 2 2 . . 5 6 . . . . 2 1 1 1 . . . . 1 . . . 5 . 3 4 . 6 6 Hunter 27 | . . . . . . . . . . . 1 . . . 2 1 . . . . 2 . 2 . . . . . . 8 11 Programmer 27 | . . . . . . . . . 1 1 . . . . 2 . . . . . . . . . . . . 2 4 10 7 Behemoth 8 | . . . . . . . . . . . . . 1 . . 1 . 1 . . . . 1 . 2 . . . . . 2 Cetus Guard 4 | . . . . . . . . . . . . . . . . . . . . . . . . . . 4 . . . . . M Guard 2 | . . . . . . . . . . . . . . . . . . . . . . . . . . . . . . . 2 Samaritan 1 | . . . . . . . . . . . 1 . . . . . . . . . . . . . . . . . . . . Thief 1 | . . . . . . . . . . . . . . . . 1 . . . . . . . . . . . . . . . Mutant 1 | . . . . . . . . . . . 1 . . . . . . . . . . . . . . . . . . . . Best Kill Streak 19 | 1 3 2 5 3 . 2 3 3 1 3 7 . 10 1 5 4 . 3 . 6 4 . 2 . 3 3 5 8 6 16 19 Combat Bots Only 16 | . 3 2 4 3 . 2 3 3 1 3 7 . 10 1 5 4 . 3 . 5 4 . 2 . 3 2 3 4 5 10 16 Max Kills in Single Turn 3 | 1 2 2 1 1 . 1 1 1 1 1 3 . 2 1 1 1 . 1 . 2 1 . 1 . 1 1 1 2 1 2 1 Gunslinging 1 | . 1 1 . . . . . . . . . . . . . . . . . . . . . . . . . . . . . Exploded 3 | . . . . . . . . . . . 3 . 2 . . . . . . . . . . . . . . . . . . Melee 2 | . . . . . . . 1 1 1 1 1 . 2 1 1 1 . 1 . 2 1 . 1 . 1 1 1 2 1 2 1 Uniques/NPCs Destroyed 2 | . . . . . . . . . . . . . . . . . . . . . . . . . . . . . . . 2 MAIN.C Shell (-1/Command) MAIN.C (-1/Command) Combat | -11 -10 -10 -9 -9 -9 -8 -8 -8 -7 -7 -7 -7 -6 -6 -6 -6 -6 -5 -5 -5 -5 -5 -4 -4 -4 -4 -3 -2 -2 -1 -1 -------- Run | Yrd Mat Min Mat Min Exi Min Mat Sto Fac Low Low Dat Pro Fac Low Low Zio Pro Fac Upp Upp War Pro Fac Ext Cet Res Res Tes Acc Com Hostile Shots Fired 1291 | . 25 12 52 33 . 9 49 62 2 36 16 . 59 9 24 29 . 25 7 67 28 6 51 . 102 30 51 51 38 173 245 Missed 798 | . 10 3 25 13 . 5 20 31 2 13 12 . 29 6 14 20 . 14 1 41 14 6 31 . 55 15 32 40 27 133 186 Intercepted 9 | . . . . . . . . . . . . . . . . . . . . . . . . . . . . . . . 9 Hits 493 | . 15 9 27 20 . 4 29 31 . 23 4 . 30 3 10 9 . 11 6 26 14 . 20 . 47 15 19 11 11 40 59 Melee 5 | . . . 1 . . . . . . . . . 1 . . . . . . 2 . . . . . . . . . . 1 Projectile 488 | . 15 9 26 20 . 4 29 31 . 23 4 . 29 3 10 9 . 11 6 24 14 . 20 . 47 15 19 11 11 40 58 AOE 5 | . . . . . . . . . . . . . . . . . . . . . . . . . . . . . . . 5 Critical Strikes 29 | . . . 4 1 . 1 1 6 . 1 . . . . . 1 . . 1 2 2 . 1 . 1 . 1 . . 3 3 Actively Blocked 9 | . . . 2 1 . . 1 . . . . . . . . . . . . . . . . . . . . . . 2 3 Part Disruptions 1 | . . . . . . . . . . . . . . . . . . . . . . . . . . . . . . . 1 Actively Blocked 1 | . . . . . . . . . . . . . . . . . . . . . . . . . . . . . . . 1 Damage Taken 2783 | . 60 37 162 101 . 30 149 208 . 121 16 . 174 7 37 34 . 57 26 123 54 . 117 . 274 86 93 64 68 204 481 Core 2009 | . 47 28 128 63 . 17 107 139 . 77 9 . 120 4 21 21 . 34 20 89 34 . 80 . 196 71 70 52 53 156 373 Absorbed by Shields 2026 | . . . . . . . . . . 50 8 . 72 4 42 47 . 66 36 143 60 . 132 . 299 92 106 67 74 218 510 Redirected to Core 1569 | . 40 16 68 61 . 17 65 86 . 55 5 . 97 4 21 21 . 34 20 54 27 . 65 . 169 52 59 35 43 137 318 Redirected to Shielding 21 | . . 2 10 5 . . 4 . . . . . . . . . . . . . . . . . . . . . . . . Ignored by Resistances 5836 | . 92 51 216 146 . 40 210 285 . 214 34 . 308 16 86 108 . 161 84 285 145 . 324 . 752 235 266 149 134 474 1021 Core Remaining (%) 96 | 100 . 96 . . . 100 . 90 . . . . 98 . . . . 100 . . . . 100 . . 100 100 . 94 . 84 Volleys Fired 120 | 12 18 5 35 16 . 11 2 . . . 4 . 6 . . . . . . . . . . . . . . . 2 . 9 Largest 2 | 2 2 2 2 2 . 2 2 . . . 1 . 1 . . . . . . . . . . . . . . . 1 . 1 Hottest 150 | 40 40 40 46 46 . 46 46 . . . 36 . 36 . . . . . . . . . . . . . . . 10 . 150 Shots Fired 219 | 24 36 10 70 32 . 22 4 . . . 4 . 6 . . . . . . . . . . . . . . . 2 . 9 Gun 198 | 24 36 10 70 32 . 22 4 . . . . . . . . . . . . . . . . . . . . . . . . Cannon 3 | . . . . . . . . . . . . . . . . . . . . . . . . . . . . . . . 3 Launcher 11 | . . . . . . . . . . . 4 . 6 . . . . . . . . . . . . . . . . . 1 Special 7 | . . . . . . . . . . . . . . . . . . . . . . . . . . . . . 2 . 5 Kinetic 198 | 24 36 10 70 32 . 22 4 . . . . . . . . . . . . . . . . . . . . . . . . Thermal 3 | . . . . . . . . . . . . . . . . . . . . . . . . . . . . . . . 3 Explosive 11 | . . . . . . . . . . . 4 . 6 . . . . . . . . . . . . . . . . . 1 Electromagnetic . | . . . . . . . . . . . . . . . . . . . . . . . . . . . . . . . . Robot Hit Streak 52 | 21 32 10 25 24 . 44 48 . . . 51 . 52 . . . . . . . . . . . . . . . 1 . 6 Robot Miss Streak 2 | . 1 . 1 2 . . . . . . . . . . . . . . . . . . . . . . . . 1 . . Penetration Max . | . . . . . . . . . . . . . . . . . . . . . . . . . . . . . . . . Secondary Targets 10 | . 2 2 3 2 . 1 . . . . . . . . . . . . . . . . . . . . . . . . . Max Gunslinging Chain 1 | . 1 1 1 1 . 1 . . . . . . . . . . . . . . . . . . . . . . . . . Shots Hit Robots 903 | 21 31 9 64 29 . 20 28 29 9 25 11 . 52 11 25 15 . 23 6 37 17 . 25 . 73 21 32 27 14 90 159 Core Hits 392 | 9 11 4 18 7 . 7 12 14 3 9 15 . 29 5 11 7 . 9 1 16 9 . 7 . 26 12 18 16 9 46 62 Critical Kills 1 | . . . . . . 1 . . . . . . . . . . . . . . . . . . . . . . . . . Critical Parts Destroyed . | . . . . . . . . . . . . . . . . . . . . . . . . . . . . . . . . Critical Strikes 97 | . . . . . . 1 2 2 1 3 . . 6 1 2 2 . 3 1 1 . . 7 . 12 3 5 5 . 16 24 Destroy 1 | . . . . . . 1 . . . . . . . . . . . . . . . . . . . . . . . . . Sever 87 | . . . . . . . 2 2 1 3 . . 6 1 2 2 . 3 1 1 . . 7 . 12 3 1 . . 16 24 Impale 9 | . . . . . . . . . . . . . . . . . . . . . . . . . . . 4 5 . . . Melee Attacks 892 | . . . . . . . 26 34 14 28 12 . 62 11 31 18 1 24 6 40 19 . 26 . 82 22 52 45 27 136 176 Impact . | . . . . . . . . . . . . . . . . . . . . . . . . . . . . . . . . Slashing 825 | . . . . . . . 26 34 14 28 12 . 62 11 31 18 1 24 6 40 19 . 26 . 76 18 27 18 22 136 176 Piercing 67 | . . . . . . . . . . . . . . . . . . . . . . . . . 6 4 25 27 5 . . Sneak Attacks 40 | . . . . . . . 1 2 1 . . . 1 2 . 1 . . . 1 . . . . 3 . . 6 7 7 8 Combat Hostiles 19 | . . . . . . . . 2 . . . . 1 . . . . . . . . . . . 2 . . 1 4 4 5 Follow-up Attacks 230 | . . . . . . . 2 2 1 5 2 . 21 6 8 4 . 11 1 12 6 . 8 . 26 10 9 5 2 27 62 Damage Inflicted 53417 | 175 261 78 728 436 . 309 970 1135 408 1126 1167 . 2832 589 1323 776 . 701 55 974 581 . 1337 . 4279 1131 2239 2837 1822 9656 15492 Guns 2052 | 175 261 78 728 436 . 309 65 . . . . . . . . . . . . . . . . . . . . . . . . Cannons . | . . . . . . . . . . . . . . . . . . . . . . . . . . . . . . . . Explosions 1240 | . . . . . . . . . . . 805 . 435 . . . . . . . . . . . . . . . . . . Melee 50125 | . . . . . . . 905 1135 408 1126 362 . 2397 589 1323 776 . 701 55 974 581 . 1337 . 4279 1131 2239 2837 1822 9656 15492 Ramming . | . . . . . . . . . . . . . . . . . . . . . . . . . . . . . . . . Kinetic 2052 | 175 261 78 728 436 . 309 65 . . . . . . . . . . . . . . . . . . . . . . . . Thermal . | . . . . . . . . . . . . . . . . . . . . . . . . . . . . . . . . Explosive 1240 | . . . . . . . . . . . 805 . 435 . . . . . . . . . . . . . . . . . . Electromagnetic . | . . . . . . . . . . . . . . . . . . . . . . . . . . . . . . . . Impact . | . . . . . . . . . . . . . . . . . . . . . . . . . . . . . . . . Slashing 45803 | . . . . . . . 905 1135 408 1126 362 . 2397 589 1323 776 . 701 55 974 581 . 1337 . 4075 958 879 347 1727 9656 15492 Piercing 4322 | . . . . . . . . . . . . . . . . . . . . . . . . . 204 173 1360 2490 95 . . Highest Corruption 1 | . . . . . . . . . . . . . . . . . . . . . . . . . . . . . . . 1 Average Corruption 1 | . . . . . . . . . . . . . . . . . . . . . . . . . . . . . . . 1 Corruption Purged . | . . . . . . . . . . . . . . . . . . . . . . . . . . . . . . . . Corruption Blocked . | . . . . . . . . . . . . . . . . . . . . . . . . . . . . . . . . Effects 1 | . . . . . . . . . . . . . . . . . . . . . . . . . . . . . . . 1 Matter Fused 1 | . . . . . . . . . . . . . . . . . . . . . . . . . . . . . . . 1 Overload Shots 3 | . . . . . . . . . . . . . . . . . . . . . . . . . . . . . . . 3 Overflow Damage 4221 | . . . . . . . 57 29 29 110 49 . 183 22 216 108 . . . 14 . . . . 54 . 117 971 202 899 1161 Projectiles . | . . . . . . . . . . . . . . . . . . . . . . . . . . . . . . . . Explosions 56 | . . . . . . . . . . . 42 . 14 . . . . . . . . . . . . . . . . . . Melee 4165 | . . . . . . . 57 29 29 110 7 . 169 22 216 108 . . . 14 . . . . 54 . 117 971 202 899 1161 Knockbacks . | . . . . . . . . . . . . . . . . . . . . . . . . . . . . . . . . Impact . | . . . . . . . . . . . . . . . . . . . . . . . . . . . . . . . . Kinetic . | . . . . . . . . . . . . . . . . . . . . . . . . . . . . . . . . Secondary . | . . . . . . . . . . . . . . . . . . . . . . . . . . . . . . . . Self-Inflicted Damage . | . . . . . . . . . . . . . . . . . . . . . . . . . . . . . . . . Shots . | . . . . . . . . . . . . . . . . . . . . . . . . . . . . . . . . Rammed . | . . . . . . . . . . . . . . . . . . . . . . . . . . . . . . . . Targets Rammed . | . . . . . . . . . . . . . . . . . . . . . . . . . . . . . . . . Kicked . | . . . . . . . . . . . . . . . . . . . . . . . . . . . . . . . . Crushed . | . . . . . . . . . . . . . . . . . . . . . . . . . . . . . . . . Highest Temperature 61 | . . . 14 . . 10 5 14 . . 6 . . . . 61 3 1 9 5 7 . 2 . 4 . 8 9 . . 22 Average Temperature 8 | . . . 7 . . 4 3 8 . . 6 . . . . 33 3 1 4 2 6 . 2 . 2 . 3 5 . . 16 Received Heat Transfer 1333 | . 60 18 117 63 . 54 99 306 . 124 12 . 72 7 . 83 . 32 27 32 28 . 24 . 66 28 37 12 . 12 20 Siege Activations . | . . . . . . . . . . . . . . . . . . . . . . . . . . . . . . . . Martial Activations . | . . . . . . . . . . . . . . . . . . . . . . . . . . . . . . . . Shielding Activations . | . . . . . . . . . . . . . . . . . . . . . . . . . . . . . . . . Robots Disrupted . | . . . . . . . . . . . . . . . . . . . . . . . . . . . . . . . . Combat Hostiles . | . . . . . . . . . . . . . . . . . . . . . . . . . . . . . . . . Robots Corrupted . | . . . . . . . . . . . . . . . . . . . . . . . . . . . . . . . . Combat Hostiles . | . . . . . . . . . . . . . . . . . . . . . . . . . . . . . . . . Parts Fried 2 | . . . . . . . . . . . . . . . . . . . . 1 . . . . . 1 . . . . . Impact Corruptions . | . . . . . . . . . . . . . . . . . . . . . . . . . . . . . . . . Robots Melted . | . . . . . . . . . . . . . . . . . . . . . . . . . . . . . . . . Combat Hostiles . | . . . . . . . . . . . . . . . . . . . . . . . . . . . . . . . . Parts Melted 3 | . . . . . . . . . . . . . . . . 2 . . . 1 . . . . . . . . . . . Heat Transferred . | . . . . . . . . . . . . . . . . . . . . . . . . . . . . . . . . Parts Sabotaged . | . . . . . . . . . . . . . . . . . . . . . . . . . . . . . . . . Parts Stolen . | . . . . . . . . . . . . . . . . . . . . . . . . . . . . . . . . Parts Stripped . | . . . . . . . . . . . . . . . . . . . . . . . . . . . . . . . . Power Chain Reactions . | . . . . . . . . . . . . . . . . . . . . . . . . . . . . . . . . Alert | -11 -10 -10 -9 -9 -9 -8 -8 -8 -7 -7 -7 -7 -6 -6 -6 -6 -6 -5 -5 -5 -5 -5 -4 -4 -4 -4 -3 -2 -2 -1 -1 ------- Run | Yrd Mat Min Mat Min Exi Min Mat Sto Fac Low Low Dat Pro Fac Low Low Zio Pro Fac Upp Upp War Pro Fac Ext Cet Res Res Tes Acc Com Maximum Alert Level 3 | . . . . . . . 1 1 . . . . . . . . . . . . . . . . . . . 1 . 2 3 Low Security (%) 81 | 100 100 100 100 100 . 100 95 58 100 . . . . 100 . . . . 100 . . . . 100 100 100 100 88 100 67 5 Level 1 7 | . . . . . . . 4 41 . . . . . . . . . . . . . . . . . . . 11 . 14 29 Level 2 9 | . . . . . . . . . . . . . . . . . . . . . . . . . . . . . . 17 56 Level 3 1 | . . . . . . . . . . . . . . . . . . . . . . . . . . . . . . . 8 Level 4 . | . . . . . . . . . . . . . . . . . . . . . . . . . . . . . . . . Level 5 . | . . . . . . . . . . . . . . . . . . . . . . . . . . . . . . . . High Security . | . . . . . . . . . . . . . . . . . . . . . . . . . . . . . . . . Max Security . | . . . . . . . . . . . . . . . . . . . . . . . . . . . . . . . . Peak Influence 735 | 5 55 85 105 86 . 56 209 357 30 . . . . 198 . . . . 35 . . . . 16 78 102 82 248 194 550 735 Initial 198 | . 2 . 11 18 . . . . . . . . . 198 . . . . 16 . . . . 16 . . . 5 104 6 114 Average 110 | 1 16 43 53 13 . 17 93 170 2 . . . . 95 . . . . 9 . . . . 3 15 46 15 99 61 174 454 Influence Increases 8961 | 20 160 130 254 141 . 101 371 757 49 105 170 . 495 201 220 125 . 170 34 357 145 . 125 . 350 177 532 453 351 1543 1425 Destroy 0b10 Robot/C 5400 | . 120 80 120 100 . 80 280 460 20 80 160 . 420 20 180 100 . 140 20 300 120 . 60 . 280 140 260 240 200 820 600 Destroy 0b10 Robot/NC 315 | 20 5 . 20 . . . 5 10 10 5 . . 10 15 10 5 . . . 5 . . . . 20 10 40 40 15 35 35 Destroy Leader 1222 | . 20 20 38 10 . 20 82 162 14 20 10 . 40 16 30 20 . 30 10 30 10 . 20 . 46 . 78 68 42 202 184 Allied During Kill 153 | . . . . . . 1 4 66 . . . . 10 . . . . . 4 22 . . . . 4 25 17 . . . . Trap Triggered on 0b10 120 | . . . . . . . . 10 . . . . . . . . . . . . . . . . . . . . 10 60 40 Disable Machine 28 | . . . . 4 . . . 4 . . . . . . . . . . . . . . . . . . 4 . 12 . 4 Anti-Garrison Action 50 | . . . . . . . . . . . . . . . . . . . . . . . . . . . . . . . 50 Destroy Structure 348 | . . . 1 12 . . . . 5 . . . . . . . . . . . . . . . . 2 58 15 27 66 162 Advance Influence 150 | . . . . . . . . . . . . . . 150 . . . . . . . . . . . . . . . . . Partial Spotted 330 | . . . . 15 . . . 45 . . . . . . . . . . . . . . . . . . 45 30 30 45 120 Lose Combat Pursuer 645 | . 15 30 75 . . . . . . . . . 15 . . . . . . . 15 . 45 . . . 30 60 15 315 30 Miscellaneous 200 | . . . . . . . . . . . . . . . . . . . . . . . . . . . . . . . 200 Influence Decreases 8517 | 15 165 90 227 208 . 101 371 757 49 105 170 . 395 301 180 120 45 135 69 282 207 13 90 35 350 177 517 220 584 1324 1215 Entered New Map 554 | . 3 . 29 49 . . . . . . . . . 52 . 15 45 . 19 . 27 13 . 19 . . . 10 144 9 120 Time Decay 4968 | 15 152 90 131 159 . 101 150 165 49 105 170 . 360 134 180 105 . 135 50 213 180 . 90 16 287 177 335 165 129 480 645 Lost Ally 486 | . . . . . . . 27 100 . . . . 35 . . . . . . 69 . . . . . . 140 40 45 30 . Purge Threat 2509 | . 10 . 67 . . . 194 492 . . . . . 115 . . . . . . . . . . 63 . 42 5 266 805 450 Squads Dispatched 33 | . . . 3 . . . . 2 2 . . . . 1 . . . . . . . . . . . . 7 . 3 8 7 Investigation 6 | . . . . . . . . . . . . . . . . . . . . . . . . . . . 3 . . 2 1 Extermination 12 | . . . . . . . . . 1 . . . . 1 . . . . . . . . . . . . 1 . 2 3 4 Reinforcement 14 | . . . 3 . . . . 2 1 . . . . . . . . . . . . . . . . . 3 . 1 3 1 Assault 1 | . . . . . . . . . . . . . . . . . . . . . . . . . . . . . . . 1 Garrison . | . . . . . . . . . . . . . . . . . . . . . . . . . . . . . . . . Intercept . | . . . . . . . . . . . . . . . . . . . . . . . . . . . . . . . . Searches Triggered . | . . . . . . . . . . . . . . . . . . . . . . . . . . . . . . . . Construction Impeded 1 | . . . . . . . . . . . . . . . . . . . . . . . . . . . . . 1 . . Haulers Reinforced 2 | . . . . . . . . . . . . . . . . . . . . . . . . . . . 1 . . 1 . Active Scanning Responses . | . . . . . . . . . . . . . . . . . . . . . . . . . . . . . . . . Cargo Convoy Interrupts . | . . . . . . . . . . . . . . . . . . . . . . . . . . . . . . . . Stealth | -11 -10 -10 -9 -9 -9 -8 -8 -8 -7 -7 -7 -7 -6 -6 -6 -6 -6 -5 -5 -5 -5 -5 -4 -4 -4 -4 -3 -2 -2 -1 -1 --------- Run | Yrd Mat Min Mat Min Exi Min Mat Sto Fac Low Low Dat Pro Fac Low Low Zio Pro Fac Upp Upp War Pro Fac Ext Cet Res Res Tes Acc Com Distress Signals 16 | . 1 . 1 . . . . . . . . . . . . . . . . . . . . . . 1 2 1 1 1 8 Communications Jammed 91 | . . . . . . . . . . . . . . . . . . . . . . . . . . 46 11 8 7 19 . Distress Signals 91 | . . . . . . . . . . . . . . . . . . . . . . . . . . 46 11 8 7 19 . Times Spotted 399 | . 14 6 16 5 . 4 14 26 4 4 9 . 23 3 10 6 . 7 2 17 7 5 6 . 16 10 19 24 17 69 56 Peak Tracking Total 17 | . 5 4 10 3 . 2 5 6 1 3 4 . 7 1 5 3 . 4 1 5 2 6 3 . 3 5 4 6 7 11 17 Tactical Retreats 24 | . 1 1 2 . . . . . . . . . 1 . . . . . . . 1 . 1 . . . 2 3 1 9 2 Traps | -11 -10 -10 -9 -9 -9 -8 -8 -8 -7 -7 -7 -7 -6 -6 -6 -6 -6 -5 -5 -5 -5 -5 -4 -4 -4 -4 -3 -2 -2 -1 -1 ------- Run | Yrd Mat Min Mat Min Exi Min Mat Sto Fac Low Low Dat Pro Fac Low Low Zio Pro Fac Upp Upp War Pro Fac Ext Cet Res Res Tes Acc Com Traps Triggered 7 | . . . . . . . . 2 2 . . . . . . . . . . . . . . . 1 . 1 . . 1 . Indirectly . | . . . . . . . . . . . . . . . . . . . . . . . . . . . . . . . . Trap Hack Attempts . | . . . . . . . . . . . . . . . . . . . . . . . . . . . . . . . . Triggered . | . . . . . . . . . . . . . . . . . . . . . . . . . . . . . . . . Disarmed 18 | . 12 . . . . . . . . . . . . . . . . . . . . . . . . . 6 . . . . Reprogrammed 37 | . . . 4 . . . . 5 . . . . . . . . . . . . . . . . . . . 1 9 10 8 Reused 12 | . . . . . . . . 1 . . . . . . . . . . . . . . . . . . . . 1 6 4 Traps Extracted . | . . . . . . . . . . . . . . . . . . . . . . . . . . . . . . . . Installed . | . . . . . . . . . . . . . . . . . . . . . . . . . . . . . . . . Triggered 12 | . . . . . . . . 1 . . . . . . . . . . . . . . . . . . . . 1 6 4 Machines | -11 -10 -10 -9 -9 -9 -8 -8 -8 -7 -7 -7 -7 -6 -6 -6 -6 -6 -5 -5 -5 -5 -5 -4 -4 -4 -4 -3 -2 -2 -1 -1 ---------- Run | Yrd Mat Min Mat Min Exi Min Mat Sto Fac Low Low Dat Pro Fac Low Low Zio Pro Fac Upp Upp War Pro Fac Ext Cet Res Res Tes Acc Com Machines Disabled 14 | . . . . 1 . . . 1 . . 2 . 3 . . . . . . . . . . . . . 1 . 3 . 3 Max in Single Turn 2 | . . . . 1 . . . 1 . . 1 . 2 . . . . . . . . . . . . . . . 1 . 2 Garrison Access 8 | . . . . . . . . 1 1 . . . . . . . . . . . . . . . . . 1 . 1 4 . Phase Generator 1 | . . . . . . . . . . . . . . . . . . . . . . . . . . . . . . . 1 Machines Repaired . | . . . . . . . . . . . . . . . . . . . . . . . . . . . . . . . . Machines Dismantled . | . . . . . . . . . . . . . . . . . . . . . . . . . . . . . . . . Machines Sabotaged . | . . . . . . . . . . . . . . . . . . . . . . . . . . . . . . . . Overloaded Fab Kills . | . . . . . . . . . . . . . . . . . . . . . . . . . . . . . . . . Hacking | -11 -10 -10 -9 -9 -9 -8 -8 -8 -7 -7 -7 -7 -6 -6 -6 -6 -6 -5 -5 -5 -5 -5 -4 -4 -4 -4 -3 -2 -2 -1 -1 --------- Run | Yrd Mat Min Mat Min Exi Min Mat Sto Fac Low Low Dat Pro Fac Low Low Zio Pro Fac Upp Upp War Pro Fac Ext Cet Res Res Tes Acc Com Machines Accessed 114 | . 5 . 6 . . . 3 13 8 . 3 3 . 6 4 1 . . 1 . . 6 . 3 5 1 11 3 10 16 6 Terminals 64 | . 5 . 5 . . . 3 10 4 . . . . 3 . . . . 1 . . . . 2 5 1 5 2 7 7 4 Fabricators 8 | . . . . . . . . . 1 . . . . 1 . . . . . . . . . . . . 2 1 1 2 . Repair Stations 1 | . . . . . . . . . . . . . . . . . . . . . . . . . . . . . . 1 . Recycling Units 12 | . . . 1 . . . . 2 2 . . . . 1 . . . . . . . . . 1 . . 2 . . 1 2 Scanalyzers 3 | . . . . . . . . . . . . . . 1 . . . . . . . . . . . . 1 . 1 . . Garrison Access 9 | . . . . . . . . 1 1 . . . . . . . . . . . . . . . . . 1 . 1 5 . Total Hacks 365 | . 14 . 15 . . . 7 34 14 . 3 17 . 18 9 1 . . 2 . . 12 . 5 11 4 46 18 40 76 19 Successful 322 | . 14 . 15 . . . 6 33 14 . 3 17 . 16 9 1 . . 2 . . 12 . 5 11 4 39 11 27 65 18 Failed 43 | . . . . . . . 1 1 . . . . . 2 . . . . . . . . . . . . 7 7 13 11 1 Catastrophic 4 | . . . . . . . . . . . . . . . . . . . . . . . . . . . 1 . 2 1 . Database Lockouts . | . . . . . . . . . . . . . . . . . . . . . . . . . . . . . . . . Manual 143 | . 10 . 10 . . . 7 14 3 . . . . 4 . . . . 1 . . 1 . 2 7 1 13 12 19 30 9 Terminals 243 | . 14 . 13 . . . 7 29 8 . . . . 10 . . . . 2 . . . . 4 11 4 25 14 33 52 17 Fabricators 41 | . . . . . . . . . 3 . . . . 5 . . . . . . . . . . . . 9 4 3 17 . Repair Stations 1 | . . . . . . . . . . . . . . . . . . . . . . . . . . . . . . 1 . Recycling Units 15 | . . . 2 . . . . 4 2 . . . . 1 . . . . . . . . . 1 . . 2 . . 1 2 Scanalyzers 14 | . . . . . . . . . . . . . . 2 . . . . . . . . . . . . 9 . 3 . . Garrison Access 9 | . . . . . . . . 1 1 . . . . . . . . . . . . . . . . . 1 . 1 5 . Terminal Hacks 210 | . 8 . 8 . . . 4 22 8 . 3 17 . 8 9 1 . . 1 . . 12 . 2 6 4 16 8 18 40 15 Record 28 | . . . . . . . . . 1 . 1 11 . . 6 . . . . . . 5 . . . 4 . . . . . Part Schematic 15 | . . . . . . . . . 1 . . 3 . . . . . . . . . . . . . . . . 1 10 . Robot Analysis 2 | . . . . . . . . 1 . . . . . . . . . . . . . . . . . . . . 1 . . Prototype ID Bank 20 | . 1 . 1 . . . . . 2 . . 3 . . . . . . . . . 5 . . 2 . 3 1 2 . . Open Door 12 | . . . . . . . . 4 . . 2 . . . 3 1 . . . . . 2 . . . . . . . . . Level Access Points 1 | . . . . . . . . . . . . . . . . . . . . . . . . . . . . . . 1 . Branch Access Points 10 | . 1 . 1 . . . 1 . 1 . . . . 1 . . . . 1 . . . . . . . 1 1 1 1 . Emergency Access Points 3 | . . . . . . . . 1 . . . . . . . . . . . . . . . . . . . . . . 2 Machine Index 5 | . . . . . . . . 1 . . . . . . . . . . . . . . . 1 1 . . . . 1 1 Terminal Index 1 | . . . 1 . . . . . . . . . . . . . . . . . . . . . . . . . . . . Fabricator Index 2 | . . . . . . . . . . . . . . . . . . . . . . . . . . . 1 . . 1 . Alert Level 1 | . . . . . . . . . . . . . . . . . . . . . . . . . . . 1 . . . . Unreport Threat 40 | . 1 . 1 . . . 3 5 . . . . . 2 . . . . . . . . . . 2 . 4 2 5 10 5 Locate Traps 6 | . 2 . . . . . . 1 . . . . . 1 . . . . . . . . . . 1 . . . . 1 . Disarm Traps 4 | . 2 . . . . . . . . . . . . . . . . . . . . . . . . . 2 . . . . Reprogram Traps 25 | . . . 2 . . . . 6 . . . . . . . . . . . . . . . . . . . 2 4 7 4 Dispatch Records 1 | . . . . . . . . . . . . . . . . . . . . . . . . . . . . . . 1 . Recall Extermination 6 | . . . . . . . . . 1 . . . . 1 . . . . . . . . . . . . 1 . 1 1 1 Recall Reinforcements 5 | . . . 1 . . . . 1 1 . . . . . . . . . . . . . . . . . . . . 1 1 Registered Components 7 | . 1 . . . . . . 1 1 . . . . 1 . . . . . . . . . . . . 1 1 1 . . Registered Prototypes 6 | . . . 1 . . . . . . . . . . 1 . . . . . . . . . . . . 1 1 1 1 . Zone Layout 8 | . . . . . . . . 1 . . . . . 1 . . . . . . . . . 1 . . 1 . . 4 . Protovariant Controls 1 | . . . . . . . . . . . . . . . . . . . . . . . . . . . . . 1 . . Disengage Seal 1 | . . . . . . . . . . . . . . . . . . . . . . . . . . . . . . . 1 Fabricator Hacks 32 | . . . . . . . . . 3 . . . . 4 . . . . . . . . . . . . 7 2 2 14 . Network Status 1 | . . . . . . . . . 1 . . . . . . . . . . . . . . . . . . . . . . Load Schematic 16 | . . . . . . . . . 1 . . . . 2 . . . . . . . . . . . . 4 1 1 7 . Build 15 | . . . . . . . . . 1 . . . . 2 . . . . . . . . . . . . 3 1 1 7 . Repair Station Hacks . | . . . . . . . . . . . . . . . . . . . . . . . . . . . . . . . . Recycling Unit Hacks 12 | . . . 1 . . . . 2 2 . . . . 1 . . . . . . . . . 1 . . 2 . . 1 2 Retrieve Components 12 | . . . 1 . . . . 2 2 . . . . 1 . . . . . . . . . 1 . . 2 . . 1 2 Scanalyzer 10 | . . . . . . . . . . . . . . 2 . . . . . . . . . . . . 6 . 2 . . Insert Component 1 | . . . . . . . . . . . . . . . . . . . . . . . . . . . 1 . . . . Analyze 2 | . . . . . . . . . . . . . . . . . . . . . . . . . . . 2 . . . . Retrieve Study 7 | . . . . . . . . . . . . . . 2 . . . . . . . . . . . . 3 . 2 . . Garrison Access Hacks 8 | . . . . . . . . 1 1 . . . . . . . . . . . . . . . . . 1 . 1 4 . Seal Access 8 | . . . . . . . . 1 1 . . . . . . . . . . . . . . . . . 1 . 1 4 . Unauthorized Hacks 48 | . 5 . 6 . . . 2 7 . . . . . 1 . . . . 1 . . . . 2 5 . 7 1 4 6 1 Terminals 34 | . 5 . 5 . . . 2 5 . . . . . 1 . . . . 1 . . . . 2 5 . 4 . 2 1 1 Assimilate 7 | . . . . . . . . . . . . . . . . . . . 1 . . . . . . . 2 . 2 1 1 Botnet 1 | . . . . . . . . 1 . . . . . . . . . . . . . . . . . . . . . . . Disrupt 2 | . . . . . . . . . . . . . . . . . . . . . . . . . . . 2 . . . . Operators 2 | . . . . . . . . 1 . . . . . . . . . . . . . . . 1 . . . . . . . Skim 22 | . 5 . 5 . . . 2 3 . . . . . 1 . . . . . . . . . 1 5 . . . . . . Fabricators 7 | . . . . . . . . . . . . . . . . . . . . . . . . . . . 2 1 1 3 . Prioritize 6 | . . . . . . . . . . . . . . . . . . . . . . . . . . . 2 1 1 2 . Liberate 1 | . . . . . . . . . . . . . . . . . . . . . . . . . . . . . . 1 . Repair Stations 1 | . . . . . . . . . . . . . . . . . . . . . . . . . . . . . . 1 . Mechanics 1 | . . . . . . . . . . . . . . . . . . . . . . . . . . . . . . 1 . Recycling Units 3 | . . . 1 . . . . 2 . . . . . . . . . . . . . . . . . . . . . . . Reject 3 | . . . 1 . . . . 2 . . . . . . . . . . . . . . . . . . . . . . . Scanalyzers 2 | . . . . . . . . . . . . . . . . . . . . . . . . . . . 1 . 1 . . Researchers 2 | . . . . . . . . . . . . . . . . . . . . . . . . . . . 1 . 1 . . Garrison Access 1 | . . . . . . . . . . . . . . . . . . . . . . . . . . . . . . 1 . Reprogram 1 | . . . . . . . . . . . . . . . . . . . . . . . . . . . . . . 1 . Data Cores Recovered 6 | . . . . . . . . . 1 . . . . . . . . . . . . . . . . . 3 . 1 . 1 Used 4 | . . . . . . . . . . . . . . . . . . . . . . . . . . . 3 . 1 . . Hacking Detections 29 | . 2 . 1 . . . . 3 . . . . . 4 . . . . . . . . . . 2 . 3 2 5 5 2 Full Trace Events . | . . . . . . . . . . . . . . . . . . . . . . . . . . . . . . . . Feedback Events . | . . . . . . . . . . . . . . . . . . . . . . . . . . . . . . . . Feedback Blocked . | . . . . . . . . . . . . . . . . . . . . . . . . . . . . . . . . Robot Schematics Acquired 5 | . . . . . . . . . . . . . . . . . 3 . . . . . . . . . . . 2 . . Robots Built 4 | . . . . . . . . . . . . . . . . . . . . . . . . . . . . 2 2 . . Authchips . | . . . . . . . . . . . . . . . . . . . . . . . . . . . . . . . . Time 238 | . . . . . . . . . . . . . . . . . . . . . . . . . . . 102 68 68 . . Total Robot Build Rating 32 | . . . . . . . . . . . . . . . . . . . . . . . . . . . . 16 16 . . Part Schematics Acquired 34 | . . . . . . . . . 1 . . 3 . . . . 15 . . . . . . . . . 1 . 4 10 . Parts Built 15 | . . . . . . . . . 2 . . . . 2 . . . . . . . . . . . . 2 . . 9 . Authchips . | . . . . . . . . . . . . . . . . . . . . . . . . . . . . . . . . Time 872 | . . . . . . . . . 42 . . . . 100 . . . . . . . . . . . . 374 . . 356 . Total Part Build Rating 109 | . . . . . . . . . 8 . . . . 10 . . . . . . . . . . . . 14 . . 77 . Part Studies Acquired 7 | . . . . . . . . . . . . . . 2 . . . . . . . . . . . . 3 . 2 . . Parts Repaired . | . . . . . . . . . . . . . . . . . . . . . . . . . . . . . . . . Time . | . . . . . . . . . . . . . . . . . . . . . . . . . . . . . . . . Parts Recycled . | . . . . . . . . . . . . . . . . . . . . . . . . . . . . . . . . Recycled Matter . | . . . . . . . . . . . . . . . . . . . . . . . . . . . . . . . . Retrieved Matter . | . . . . . . . . . . . . . . . . . . . . . . . . . . . . . . . . Retrieved Components 37 | . . . 1 . . . . 2 4 . . . . 1 . . . . . . . . . 2 . . 12 . . 10 5 Parts Scanalyzed 1 | . . . . . . . . . . . . . . . . . . . . . . . . . . . 1 . . . . Part Schematics Acquired 1 | . . . . . . . . . . . . . . . . . . . . . . . . . . . 1 . . . . Parts Damaged . | . . . . . . . . . . . . . . . . . . . . . . . . . . . . . . . . Bothacking | -11 -10 -10 -9 -9 -9 -8 -8 -8 -7 -7 -7 -7 -6 -6 -6 -6 -6 -5 -5 -5 -5 -5 -4 -4 -4 -4 -3 -2 -2 -1 -1 ------------ Run | Yrd Mat Min Mat Min Exi Min Mat Sto Fac Low Low Dat Pro Fac Low Low Zio Pro Fac Upp Upp War Pro Fac Ext Cet Res Res Tes Acc Com Used RIF Installer . | . . . . . . . . . . . . . . . . . . . . . . . . . . . . . . . . Robots Hacked 6 | . . . . . . . . . . . . . . . . . . . . . . . . . . . . . 1 . 5 Non-combat . | . . . . . . . . . . . . . . . . . . . . . . . . . . . . . . . . Combat 6 | . . . . . . . . . . . . . . . . . . . . . . . . . . . . . 1 . 5 Robot Hacks Applied 6 | . . . . . . . . . . . . . . . . . . . . . . . . . . . . . 1 . 5 parse_system 6 | . . . . . . . . . . . . . . . . . . . . . . . . . . . . . 1 . 5 Relay Couplers Released . | . . . . . . . . . . . . . . . . . . . . . . . . . . . . . . . . Fabnet Peak Effective % . | . . . . . . . . . . . . . . . . . . . . . . . . . . . . . . . . Robots Rewired 6 | . . . . . . . . 1 . . 4 . . . . . . . . . . . . . . . . . 1 . . Allies Hacked 1 | . . . . . . . . . . . . . . . . . . . . . . . . . . . . 1 . . . Hacks Repelled . | . . . . . . . . . . . . . . . . . . . . . . . . . . . . . . . . Allies | -11 -10 -10 -9 -9 -9 -8 -8 -8 -7 -7 -7 -7 -6 -6 -6 -6 -6 -5 -5 -5 -5 -5 -4 -4 -4 -4 -3 -2 -2 -1 -1 -------- Run | Yrd Mat Min Mat Min Exi Min Mat Sto Fac Low Low Dat Pro Fac Low Low Zio Pro Fac Upp Upp War Pro Fac Ext Cet Res Res Tes Acc Com Total Allies 42 | . . . . 3 . . . 10 . . 4 . . . . . 5 . 1 . . . . . 4 5 . 2 4 4 . Largest Group 11 | . . . . 3 3 3 3 11 . . 4 4 4 . . . 5 5 6 6 . . . . 4 9 9 2 4 1 . Highest-Rated Group 774 | . . . . 40 40 40 40 188 . . 64 64 64 . . . 127 127 137 137 . . . . 294 774 774 100 283 45 . Highest-Rated Ally 159 | . . . . 16 16 16 16 29 . . 16 16 16 . . . 31 31 31 31 . . . . 159 159 159 50 157 45 . Total Orders . | . . . . . . . . . . . . . . . . . . . . . . . . . . . . . . . . Ally Attacks 343 | . . . . . . . 29 76 . . . . 33 . . . . 15 7 79 . . . . 1 25 55 6 14 3 . Total Damage 6929 | . . . . . . . 273 979 . . . . 345 . . . . 194 101 1160 . . . . 104 598 1932 263 845 135 . Kills 38 | . . . . . . . 3 12 . . . . 1 . . . . 2 1 4 . . . . . 3 9 . 3 . . Allies Corrupted 2 | . . . . . . . . . . . . . . . . . . . . . . . . . . . . 2 . . . Allies Melted . | . . . . . . . . . . . . . . . . . . . . . . . . . . . . . . . . Intel | -11 -10 -10 -9 -9 -9 -8 -8 -8 -7 -7 -7 -7 -6 -6 -6 -6 -6 -5 -5 -5 -5 -5 -4 -4 -4 -4 -3 -2 -2 -1 -1 ------- Run | Yrd Mat Min Mat Min Exi Min Mat Sto Fac Low Low Dat Pro Fac Low Low Zio Pro Fac Upp Upp War Pro Fac Ext Cet Res Res Tes Acc Com Active Infowar (turns) 9323 | 76 365 123 207 443 177 221 211 229 324 276 440 31 540 257 298 154 308 277 86 367 255 194 232 85 561 247 835 265 285 792 162 Optics 2 | . . . . . . . . . . . . . . . . . . . . . . 2 . . . . . . . . . Sensors 1 | . . . . 1 . . . . . . . . . . . . . . . . . . . . . . . . . . . Terrain 9322 | 76 365 123 207 443 177 221 211 229 324 276 440 31 540 257 298 154 308 277 86 367 255 194 232 85 561 247 835 265 285 792 161 Traps 7505 | . . . . . . . 5 229 324 276 440 31 540 257 298 154 308 277 86 367 255 194 232 85 561 247 835 265 285 792 162 Cloaking 3579 | . . . . . . . . . . . . . . . . . . . . . . 118 232 85 561 247 835 265 285 792 159 Jamming 2265 | . . . . . . . . . . . . . . . . . . . . . . . . . 146 247 835 265 282 490 . Robot Analysis Total 2 | . . . . . . . . 1 . . . . . . . . . . . . . . . . . . . . 1 . . Derelict Logs Recovered 18 | . . 1 . 2 . . . . . 1 3 . 2 . 1 . 1 2 . 1 2 . 2 . . . . . . . . Drone Launches . | . . . . . . . . . . . . . . . . . . . . . . . . . . . . . . . . Drone Recoveries . | . . . . . . . . . . . . . . . . . . . . . . . . . . . . . . . . Exploration | -11 -10 -10 -9 -9 -9 -8 -8 -8 -7 -7 -7 -7 -6 -6 -6 -6 -6 -5 -5 -5 -5 -5 -4 -4 -4 -4 -3 -2 -2 -1 -1 ------------- Run | Yrd Mat Min Mat Min Exi Min Mat Sto Fac Low Low Dat Pro Fac Low Low Zio Pro Fac Upp Upp War Pro Fac Ext Cet Res Res Tes Acc Com Turns Passed 10178 | 192 365 123 207 443 177 221 211 229 324 276 440 31 540 257 298 154 308 277 86 367 255 194 232 85 561 247 835 265 285 792 901 Spaces Moved 22576 | 129 397 326 319 980 406 412 300 485 809 782 1082 80 1132 451 873 460 662 445 167 474 759 657 716 326 967 181 1691 815 1138 2404 1751 Core 10 | 8 . . . . . . . . . . 2 . . . . . . . . . . . . . . . . . . . . Treads . | . . . . . . . . . . . . . . . . . . . . . . . . . . . . . . . . Legs 273 | 121 152 . . . . . . . . . . . . . . . . . . . . . . . . . . . . . . Wheels . | . . . . . . . . . . . . . . . . . . . . . . . . . . . . . . . . Hover . | . . . . . . . . . . . . . . . . . . . . . . . . . . . . . . . . Flight 22293 | . 245 326 319 980 406 412 300 485 809 782 1080 80 1132 451 873 460 662 445 167 474 759 657 716 326 967 181 1691 815 1138 2404 1751 Fastest Speed 13 | 50 31 31 31 31 31 31 26 26 26 26 26 26 26 26 28 28 28 28 28 28 28 26 26 26 26 26 26 23 13 14 14 Average Speed 25 | 115 65 31 31 31 31 31 29 26 26 26 26 26 26 27 28 28 28 28 28 28 28 26 26 26 26 26 26 24 14 14 14 Slowest Speed 120 | 120 120 31 31 31 31 31 31 26 26 26 100 26 26 28 28 28 28 28 28 28 28 28 26 26 26 26 26 91 23 14 99 Overloaded Moves . | . . . . . . . . . . . . . . . . . . . . . . . . . . . . . . . . Propulsion Burnouts . | . . . . . . . . . . . . . . . . . . . . . . . . . . . . . . . . Robots Hopped 100 | . 3 5 5 5 . 2 2 14 2 . 2 . . 4 . . . 1 . . . . . 1 6 1 6 2 16 19 4 Potential Cave-ins 2 | . . . . . . . . . . . . . . . . . . . . . . . . . . . . . . . 2 Cave-ins Triggered . | . . . . . . . . . . . . . . . . . . . . . . . . . . . . . . . . Exploration Rate (%) 65 | 5 61 84 32 98 91 94 29 90 26 93 98 71 96 19 95 72 82 67 4 58 92 93 83 12 86 70 51 38 91 63 41 Regions Visited 31 Branch Regions 21 Pre-discovered Areas 6 | . . . . . . . . . . 1 . 1 . . . . 1 1 . . . 1 1 . . . . . . . . Known Exits Taken 31 | 1 1 1 1 1 1 1 1 1 1 1 1 1 1 1 1 1 1 1 1 1 1 1 1 1 1 1 1 1 1 1 . Unknown Exits Taken . | . . . . . . . . . . . . . . . . . . . . . . . . . . . . . . . . Scrap Searched 32 | . . 3 . 2 . 1 . . . 4 4 . 3 . 3 3 1 2 . 2 3 . 1 . . . . . . . . Spaces Dug 54 | . . . . . . . . . 5 . . . . . . . . . . . . . . . . . 13 5 7 22 2 Terrain Destroyed 211 | . . . . 13 . . . . 5 . 30 . 35 . . . . . . . . . . . . . 13 5 7 22 81 Melee 54 | . . . . . . . . . 5 . . . . . . . . . . . . . . . . . 13 5 7 22 2 Projectile . | . . . . . . . . . . . . . . . . . . . . . . . . . . . . . . . . AOE 157 | . . . . 13 . . . . . . 30 . 35 . . . . . . . . . . . . . . . . . 79 Terrain Rammed . | . . . . . . . . . . . . . . . . . . . . . . . . . . . . . . . . Walls Destroyed . | . . . . . . . . . . . . . . . . . . . . . . . . . . . . . . . . Machines Disabled . | . . . . . . . . . . . . . . . . . . . . . . . . . . . . . . . . Actions | -11 -10 -10 -9 -9 -9 -8 -8 -8 -7 -7 -7 -7 -6 -6 -6 -6 -6 -5 -5 -5 -5 -5 -4 -4 -4 -4 -3 -2 -2 -1 -1 --------- Run | Yrd Mat Min Mat Min Exi Min Mat Sto Fac Low Low Dat Pro Fac Low Low Zio Pro Fac Upp Upp War Pro Fac Ext Cet Res Res Tes Acc Com Total 26276 | 148 477 334 360 1084 459 483 386 529 903 822 1220 89 1319 569 914 477 783 584 201 683 791 677 750 324 1234 369 2061 861 1243 2794 2348 Wait 2417 | . 32 4 2 58 45 55 21 11 45 . 104 10 115 104 4 1 121 119 24 166 4 1 . . 171 174 266 3 50 269 438 Move 22351 | 128 391 315 309 969 405 407 295 457 804 781 1077 79 1131 442 872 459 661 442 166 473 758 656 715 323 954 178 1678 810 1106 2367 1743 Hop 94 | . 2 5 4 5 . 2 2 13 2 . 2 . . 4 . . . 1 . . . . . 1 6 1 6 2 15 17 4 Pick Up 85 | . 10 1 2 5 3 3 4 2 1 5 1 . 7 . 2 1 . . . . 3 . 3 . 6 . 9 4 2 5 6 Fast Attach 95 | 8 3 . 2 5 . 1 6 4 4 1 3 . 3 6 2 1 . . 2 3 2 7 1 . 4 . 9 3 6 8 1 Attach 51 | . 6 . . . . . 7 . 2 . 4 . 2 . . . . . 1 . . 2 . . . . 5 . 9 2 11 Detach 91 | . 5 . 2 2 . 1 11 2 4 2 5 . 1 . . 1 . . 1 . . 5 1 . 2 . 14 1 14 7 10 Swap 23 | . . 1 1 1 . . 2 . . 1 . . . 2 3 . . . . . . . . . . . 3 1 1 6 1 Drop 158 | . 7 2 3 8 6 1 7 2 7 4 2 . 9 6 5 1 . 2 2 3 5 6 5 . 7 . 18 8 10 14 8 Fire 120 | 12 18 5 35 16 . 11 2 . . . 4 . 6 . . . . . . . . . . . . . . . 2 . 9 Melee 550 | . . . . . . . 22 28 13 20 7 . 30 5 17 11 1 12 5 25 11 . 17 . 47 11 36 27 21 85 99 Ram . | . . . . . . . . . . . . . . . . . . . . . . . . . . . . . . . . Kick . | . . . . . . . . . . . . . . . . . . . . . . . . . . . . . . . . Crush . | . . . . . . . . . . . . . . . . . . . . . . . . . . . . . . . . Escape Stasis 40 | . . . . . . . . . 15 . . . . . . . . . . . . . . . 15 . 10 . . . . Rewire 12 | . . . . . . . . 1 . . 9 . . . . . . . . . . . . . . . . . 2 . . Trap . | . . . . . . . . . . . . . . . . . . . . . . . . . . . . . . . . Miscellaneous 189 | . 3 1 . 15 . 2 7 9 6 8 2 . 15 . 9 2 . 8 . 13 8 . 8 . 22 5 7 2 5 14 18 Route ------- -11/Scrapyard -10/Materials (discovered 3 exits: *Mat / *Min / Sub) -10/Mines (discovered 3 exits: *Mat x2 / Sub) -9/Materials -9/Mines (discovered 3 exits: *Mat x2 / *Exi) -9/Exiles (discovered 2 exits: *Min x2) -8/Mines (discovered 2 exits: *Mat x2) -8/Materials (discovered 2 exits: *Fac / *Sto) -8/Storage (discovered 2 exits: *Fac / Rec) -7/Factory (discovered 2 exits: *Low x2) -7/Lower Caves -7/Lower Caves (discovered 2 exits: *Fac / *Dat) -7/Data Miner -6/Proximity Caves -6/Factory (discovered 2 exits: *Low x2) -6/Lower Caves -6/Lower Caves (discovered 2 exits: *Fac / *Zio) -6/Zion -5/Proximity Caves -5/Factory (discovered 4 exits: Fac x2 / *Upp x2) -5/Upper Caves -5/Upper Caves (discovered 2 exits: *Fac / *War) -5/Warlord -4/Proximity Caves -4/Factory (discovered 3 exits: Upp / *Ext x2) -4/Extension (discovered 3 exits: *Res x2 / *Cet) -4/Cetus (discovered 2 exits: *Res / *Arc) -3/Research (discovered 6 exits: *Res x3 / Arm / *Qua x2) -2/Research (discovered 4 exits: *Acc x2 / *Tes x2) -2/Testing -1/Access (discovered 2 exits: Sur / *Com) -1/Command (discovered 2 exits: Sur x2) 0b10 Command History --------- Turn | Location | Event 1 | -11/Scrapyard | Upgraded with Propulsion slot (x1) 1 | -11/Scrapyard | Upgraded with Utility slot (x3) 1 | -11/Scrapyard | Upgraded with Weapon slot (x1) 3 | -11/Scrapyard | Identified exit to Materials 3 | -11/Scrapyard | Discovered exit to Materials (range 16) 193 | -11/Scrapyard | Entered Materials 223 | -10/Materials | Identified exit to Mines 428 | -10/Materials | Identified exit to Subcaves 428 | -10/Materials | Discovered exit to Subcaves (range 10) 460 | -10/Materials | Upgraded with Propulsion slot (x2) 477 | -10/Materials | Identified exit to Materials 477 | -10/Materials | Discovered exit to Materials (range 17) 558 | -10/Materials | Entered Mines 573 | -10/Mines | Discovered exit to Materials (range 8) 616 | -10/Mines | Discovered exit to Materials (range 11) 627 | -10/Mines | Reached level 2 656 | -10/Mines | Discovered exit to Subcaves (range 15) 681 | -10/Mines | Entered Materials 683 | -9/Materials | Reached level 3 684 | -9/Materials | Identified exit to Mines 729 | -9/Materials | Build established: Wizard-Scout 730 | -9/Materials | Reached level 4 888 | -9/Materials | Entered Mines 937 | -9/Mines | Met a Derelict bent on vengeance 981 | -9/Mines | Identified exit to Materials 981 | -9/Mines | Discovered exit to Materials (range 15) 985 | -9/Mines | Discovered exit to Materials (range 12) 985 | -9/Mines | Learned location of 1 exit from Materials 985 | -9/Mines | Learned Materials stockpile data 1138 | -9/Mines | Reached level 5 1152 | -9/Mines | Identified exit to Exiles 1152 | -9/Mines | Discovered exit to Exiles (range 14) 1204 | -9/Mines | Upgraded with Utility slot (x3) 1275 | -9/Mines | Assisted by bots powering up and referring to "LRC-V3" 1290 | -9/Mines | Found a damaged Exp. Sensor Array with a note attached 1291 | -9/Mines | Found Prototype Device 1291 | -9/Mines | Identified Exp. Sensor Array 1303 | -9/Mines | Deemed a non-threat by the Exiles lab entrance 1331 | -9/Mines | Entered Exiles 1331 | -9/Exiles | Found Exiles lab abandoned 1331 | -9/Exiles | Accompanied by 3 allies 1339 | -9/Exiles | Identified exit to Mines 1339 | -9/Exiles | Discovered exit to Mines (range 17) 1458 | -9/Exiles | Discovered exit to Mines (range 10) 1508 | -9/Exiles | Entered Mines 1508 | -8/Mines | Accompanied by 3 allies 1526 | -8/Mines | Upgraded with Weapon slot (x1) 1567 | -8/Mines | Discovered exit to Materials (range 13) 1575 | -8/Mines | Discovered exit to Materials (range 8) 1612 | -8/Mines | Reached level 6 1729 | -8/Mines | Entered Materials 1729 | -8/Materials | Accompanied by 3 allies 1730 | -8/Materials | Identified exit to Factory 1731 | -8/Materials | Reached level 7 1731 | -8/Materials | Identified exit to Storage 1822 | -8/Materials | Reached level 8 1857 | -8/Materials | Upgraded with Utility slot (x2) 1940 | -8/Materials | Entered Storage 1940 | -8/Storage | Accompanied by 1 ally 1941 | -8/Storage | Identified exit to Recycling 1942 | -8/Storage | Reached level 9 1974 | -8/Storage | Assisted by bots powering up and referring to "LRC-V3" 2000 | -8/Storage | Reached level 10 2094 | -8/Storage | Reached level 11 2144 | -8/Storage | Discovered exit to Factory (range 15) 2169 | -8/Storage | Entered Factory 2171 | -7/Factory | Reached level 12 2178 | -7/Factory | Upgraded with Utility slot (x2) 2334 | -7/Factory | Fabricated Core Analyzer (x2) 2348 | -7/Factory | Allied Derelicts emerged from ambush trap array 2368 | -7/Factory | Identified exit to Lower Caves 2493 | -7/Factory | Entered Lower Caves 2522 | -7/Lower Caves | Reached level 13 2640 | -7/Lower Caves | Identified exit to Lower Caves 2640 | -7/Lower Caves | Discovered exit to Lower Caves (range 15) 2769 | -7/Lower Caves | Entered another Lower Caves area 2771 | -7/Lower Caves | Identified exit to Factory 2771 | -7/Lower Caves | Discovered exit to Factory (range 5) 2832 | -7/Lower Caves | Entered an active Warlord outpost 2858 | -7/Lower Caves | Learned Factory trap positions 2886 | -7/Lower Caves | Learned Factory emergency access door positions 2893 | -7/Lower Caves | Attracted the attention of an 0b10 base 2926 | -7/Lower Caves | Reached level 14 2953 | -7/Lower Caves | Destroyed 7 combat bots 2954 | -7/Lower Caves | Upgraded with Weapon slot (x1) 2963 | -7/Lower Caves | Attacked by a delusional Derelict stockpiling Unaware 3047 | -7/Lower Caves | Identified exit to Data Miner 3047 | -7/Lower Caves | Discovered exit to Data Miner (range 17) 3089 | -7/Lower Caves | Encountered a Warlord checkpoint 3209 | -7/Lower Caves | Entered Data Miner 3209 | -7/Data Miner | Accompanied by 4 allies 3209 | -7/Data Miner | Identified exit to Proximity Caves 3209 | -7/Data Miner | Discovered exit to Proximity Caves (range 6) 3214 | -7/Data Miner | Met Data Miner 3220 | -7/Data Miner | Learned location of Section 7 (-3) 3220 | -7/Data Miner | Acquired the access code to Warlord's prototype stash 3224 | -7/Data Miner | Received God Mode back door access code from Data Miner 3240 | -7/Data Miner | Entered Proximity Caves 3240 | -6/Proximity Caves | Accompanied by 4 allies 3242 | -6/Proximity Caves | Reached level 15 3244 | -6/Proximity Caves | Spotted B-75 Beast 3273 | -6/Proximity Caves | Destroyed B-75 Beast 3282 | -6/Proximity Caves | Learned Factory terminal intel 3341 | -6/Proximity Caves | Spotter reported a threat 3347 | -6/Proximity Caves | Attracted the attention of an 0b10 checkpoint 3551 | -6/Proximity Caves | Attracted the attention of an 0b10 base 3554 | -6/Proximity Caves | Lost 3 allies 3567 | -6/Proximity Caves | Reached level 16 3619 | -6/Proximity Caves | Destroyed 10 combat bots 3619 | -6/Proximity Caves | Learned Factory interactive machine intel 3666 | -6/Proximity Caves | Discovered exit to Factory (range 10) 3780 | -6/Proximity Caves | Entered Factory 3781 | -6/Factory | Loaded intel: 109 trap records 3782 | -6/Factory | Reached level 17 3783 | -6/Factory | Loaded intel: 53 interactive machine locations 3784 | -6/Factory | Loaded intel: 26 terminal locations 3856 | -6/Factory | Fabricated Biomechanical Wings (x1) 3909 | -6/Factory | Fabricated Biomechanical Wings (x1) 3941 | -6/Factory | Identified exit to Lower Caves 3992 | -6/Factory | Upgraded with Utility slot (x2) 4016 | -6/Factory | Upgraded with Power slot (x1) 4037 | -6/Factory | Entered Lower Caves 4044 | -6/Lower Caves | Reached level 18 4099 | -6/Lower Caves | Encountered a Warlord checkpoint 4222 | -6/Lower Caves | Learned Armory terminal intel 4222 | -6/Lower Caves | Learned Factory trap positions 4222 | -6/Lower Caves | Learned Research trap positions 4222 | -6/Lower Caves | Learned Research emergency access door positions 4222 | -6/Lower Caves | Learned Extension terminal intel 4222 | -6/Lower Caves | Learned Armory emergency access door positions 4264 | -6/Lower Caves | Upgraded with Utility slot (x2) 4315 | -6/Lower Caves | Identified exit to Lower Caves 4315 | -6/Lower Caves | Discovered exit to Lower Caves (range 12) 4335 | -6/Lower Caves | Entered another Lower Caves area 4336 | -6/Lower Caves | Identified exit to Factory 4336 | -6/Lower Caves | Discovered exit to Factory (range 6) 4373 | -6/Lower Caves | Attracted the attention of an 0b10 checkpoint 4390 | -6/Lower Caves | Spotted B-75 Beast 4396 | -6/Lower Caves | Destroyed B-75 Beast 4446 | -6/Lower Caves | Encountered a Warlord checkpoint 4470 | -6/Lower Caves | Identified exit to Zion 4470 | -6/Lower Caves | Discovered exit to Zion (range 13) 4489 | -6/Lower Caves | Entered Zion 4495 | -6/Zion | Received a visual enhancement algorithm 4567 | -6/Zion | Met Imprinter 4603 | -6/Zion | Gained Derelict followers 4626 | -6/Zion | Learned 8 Factory zone layouts 4653 | -6/Zion | Identified exit to Proximity Caves 4653 | -6/Zion | Discovered exit to Proximity Caves (range 18) 4797 | -6/Zion | Entered Proximity Caves 4797 | -5/Proximity Caves | Accompanied by 5 allies 4799 | -5/Proximity Caves | Reached level 19 4799 | -5/Proximity Caves | Learned 12 Factory zone layouts 4823 | -5/Proximity Caves | Learned location of Warlord (-5) 4904 | -5/Proximity Caves | Spotted B-75 Beast 4923 | -5/Proximity Caves | Destroyed B-75 Beast 4945 | -5/Proximity Caves | Reached level 20 4954 | -5/Proximity Caves | Discovered exit to Factory (range 17) 5074 | -5/Proximity Caves | Entered Factory 5074 | -5/Factory | Accompanied by 5 allies 5075 | -5/Factory | Identified exit to Upper Caves 5076 | -5/Factory | Identified exit to Factory 5077 | -5/Factory | Loaded intel: 99 trap records 5160 | -5/Factory | Entered Upper Caves 5160 | -5/Upper Caves | Accompanied by 6 allies 5162 | -5/Upper Caves | Reached level 21 5166 | -5/Upper Caves | Spotted B-75 Beast 5184 | -5/Upper Caves | Allies destroyed B-75 Beast 5407 | -5/Upper Caves | Learned Factory stockpile data 5430 | -5/Upper Caves | Identified exit to Upper Caves 5430 | -5/Upper Caves | Discovered exit to Upper Caves (range 10) 5508 | -5/Upper Caves | Lost 3 allies 5527 | -5/Upper Caves | Entered another Upper Caves area 5537 | -5/Upper Caves | Discovered exit to Factory (range 18) 5576 | -5/Upper Caves | Attracted the attention of an 0b10 checkpoint 5640 | -5/Upper Caves | Reached level 22 5685 | -5/Upper Caves | Learned Factory terminal intel 5762 | -5/Upper Caves | Identified exit to Warlord 5762 | -5/Upper Caves | Discovered exit to Warlord (range 20) 5779 | -5/Upper Caves | Encountered a Warlord checkpoint 5782 | -5/Upper Caves | Entered Warlord 5828 | -5/Warlord | Visited the Vortex Lab 5830 | -5/Warlord | Found Prototype Piercing Weapon 5830 | -5/Warlord | Identified Vortex Lance 5839 | -5/Warlord | Warlord's base attacked by MAIN.C 5844 | -5/Warlord | Opened Warlord's prototype stash 5852 | -5/Warlord | Found Prototype Processor 5852 | -5/Warlord | Identified Spectral Analyzer 5858 | -5/Warlord | Found Prototype Device 5858 | -5/Warlord | Identified Exp. Cloaking Device 5861 | -5/Warlord | Found Prototype Reactor 5861 | -5/Warlord | Identified Vortex Chain Reactor 5863 | -5/Warlord | Upgraded with Utility slot (x1) 5891 | -5/Warlord | Met Warlord 5923 | -5/Warlord | Learned 4 Command zone layouts 5923 | -5/Warlord | Learned 4 Command zone layouts 5923 | -5/Warlord | Learned Research repair station intel 5963 | -5/Warlord | Opened side exit 5972 | -5/Warlord | Identified exit to Proximity Caves 5972 | -5/Warlord | Discovered exit to Proximity Caves (range 16) 5976 | -5/Warlord | Entered Proximity Caves 6051 | -4/Proximity Caves | Spotted B-86 Titan 6078 | -4/Proximity Caves | Destroyed B-86 Titan 6114 | -4/Proximity Caves | Reached level 23 6120 | -4/Proximity Caves | Build established: Wizard-Ninja 6135 | -4/Proximity Caves | Learned location of Armory (-3) 6167 | -4/Proximity Caves | Discovered exit to Factory (range 17) 6173 | -4/Proximity Caves | Learned location of 1 exit from Research 6208 | -4/Proximity Caves | Entered Factory 6209 | -4/Factory | Identified exit to Upper Caves 6209 | -4/Factory | Identified exit to Extension 6211 | -4/Factory | Loaded intel: 27 terminal locations 6291 | -4/Factory | Discovered exit to Extension (range 10) 6293 | -4/Factory | Entered Extension 6294 | -4/Extension | Loaded intel: 11 terminal locations 6295 | -4/Extension | Reached level 24 6316 | -4/Extension | Spotted B-86 Titan 6318 | -4/Extension | Spotted B-86 Titan 6320 | -4/Extension | Identified exit to Research 6320 | -4/Extension | Discovered exit to Research (range 17) 6385 | -4/Extension | Destroyed B-86 Titan 6506 | -4/Extension | Destroyed B-86 Titan 6606 | -4/Extension | Rescued a captive Derelict 6606 | -4/Extension | Rescued a captive Derelict 6660 | -4/Extension | Rescued A7 6670 | -4/Extension | Rescued a captive Derelict 6723 | -4/Extension | Rescued a captive Derelict 6741 | -4/Extension | Discovered exit to Research (range 10) 6741 | -4/Extension | Identified exit to Cetus 6741 | -4/Extension | Discovered exit to Cetus (range 6) 6769 | -4/Extension | Learned 2 Upper Caves zone layouts 6822 | -4/Extension | Learned Quarantine scanalyzer intel 6854 | -4/Extension | Entered Cetus 6854 | -4/Cetus | Accompanied by 4 allies (A7) 6859 | -4/Cetus | Acquired a Cetus Manufacturing Module code from A7 6860 | -4/Cetus | Spotted Cetus Guard 6860 | -4/Cetus | Spotted Cetus Guard 6861 | -4/Cetus | Spotted Cetus Guard 6861 | -4/Cetus | Spotted Cetus Guard 6866 | -4/Cetus | Reached level 25 6866 | -4/Cetus | Destroyed Cetus Guard 6872 | -4/Cetus | Allies destroyed Cetus Guard 6872 | -4/Cetus | Destroyed Cetus Guard 6875 | -4/Cetus | Allies destroyed Cetus Guard 6890 | -4/Cetus | Started Cetus Manufacturing Module 6899 | -4/Cetus | Identified exit to Archives 6899 | -4/Cetus | Discovered exit to Archives (range 18) 6915 | -4/Cetus | Manufactured an Enhanced Grunt 6940 | -4/Cetus | Manufactured an Enhanced Grunt 6954 | -4/Cetus | Spotted Cetus Guard 6955 | -4/Cetus | Spotted Cetus Guard 6955 | -4/Cetus | Spotted Cetus Guard 6955 | -4/Cetus | Spotted Cetus Guard 6956 | -4/Cetus | Discovered exit to Research (range 18) 6965 | -4/Cetus | Manufactured an Enhanced Grunt 6965 | -4/Cetus | Destroyed Cetus Guard 6972 | -4/Cetus | Allies destroyed Cetus Guard 6972 | -4/Cetus | Destroyed Cetus Guard 6974 | -4/Cetus | Met Revision 17 6990 | -4/Cetus | Manufactured an Enhanced Grunt 7015 | -4/Cetus | Manufactured an Enhanced Grunt 7101 | -4/Cetus | Entered Research 7101 | -3/Research | Accompanied by 9 allies (A7) 7102 | -3/Research | Identified exit to Quarantine 7103 | -3/Research | Loaded intel: 112 trap records 7103 | -3/Research | Reached level 26 7105 | -3/Research | Loaded intel: 4 repair station locations 7137 | -3/Research | Found Fusion Bomb Launcher 7150 | -3/Research | Discovered exit to Quarantine (range 13) 7235 | -3/Research | Identified exit to Research 7235 | -3/Research | Discovered exit to Research (range 18) 7281 | -3/Research | Watched by a mysterious "MATRIX" hacker 7300 | -3/Research | Found Prototype Device 7300 | -3/Research | Identified Exp. Focal Shield 7301 | -3/Research | Revision forces began assault on 0b10 7485 | -3/Research | Reached level 27 7543 | -3/Research | Met up with Revision 17++ 7613 | -3/Research | Fabricated Molecular Scythe (x1) 7709 | -3/Research | Fabricated Molecular Scythe (x1) 7719 | -3/Research | Identified exit to Armory 7801 | -3/Research | Research terminal network offline 7869 | -3/Research | Fabricated X-82 Rainmaker? 7880 | -3/Research | Discovered exit to Research (range 12) 7928 | -3/Research | Discovered exit to Research (range 8) 7936 | -3/Research | Entered another Research area 7936 | -2/Research | Warlord forces began assault on 0b10 7938 | -2/Research | Reached level 28 7941 | -2/Research | Identified exit to Testing 7969 | -2/Research | Identified exit to Access 7969 | -2/Research | Discovered exit to Access (range 6) 7991 | -2/Research | Reached level 29 8029 | -2/Research | Fabricated X-82 Rainmaker? 8046 | -2/Research | Research machine network offline 8056 | -2/Research | Spotted B-90 Cyclops 8079 | -2/Research | Spotted B-90 Cyclops 8172 | -2/Research | Discovered exit to Access (range 14) 8201 | -2/Research | Entered Testing 8203 | -2/Testing | Reached level 30 8233 | -2/Testing | Found Prototype Device 8233 | -2/Testing | Identified Exp. Transmission Jammer 8268 | -2/Testing | Discovered exit to Access (range 19) 8281 | -2/Testing | Found Prototype Device 8281 | -2/Testing | Identified Exp. EM Shield 8307 | -2/Testing | Rewired PY-DLD4MV21Z5 8366 | -2/Testing | Fabricated X-82 Rainmaker? 8486 | -2/Testing | Entered Access 8487 | -1/Access | Identified exit to Command 8488 | -1/Access | Reached level 31 8488 | -1/Access | Reached level 32 8540 | -1/Access | Fabricated Exp. Armor Integrity Analyzer (x1) 8590 | -1/Access | Fabricated Exp. Core Analyzer (x1) 8616 | -1/Access | Fabricated Adv. Trap Scanner (x2) 8655 | -1/Access | Fabricated Femtoactuators (x1) 8681 | -1/Access | Fabricated Adv. Force Booster (x2) 8731 | -1/Access | Spotted B-99 Colossus 8737 | -1/Access | Destroyed 9 combat bots 8785 | -1/Access | Reached level 33 8814 | -1/Access | Destroyed 10 combat bots 9019 | -1/Access | Found Prototype Device 9019 | -1/Access | Identified Exp. Thermal Shield 9051 | -1/Access | Identified exit to Surface 9111 | -1/Access | Fabricated Exp. Reaction Control System (x1) 9168 | -1/Access | Fabricated Exp. Phase Shifter (x1) 9178 | -1/Access | Spotted B-99 Colossus 9268 | -1/Access | Reached level 34 9278 | -1/Access | Entered Command 9358 | -1/Command | Reached level 35 9376 | -1/Command | Targeted by mysterious "MATRIX" hacker 9396 | -1/Command | Spotted B-99 Colossus 9410 | -1/Command | Destroyed 16 combat bots 9411 | -1/Command | Destroyed B-99 Colossus 9449 | -1/Command | Disengaged cave seal 9449 | -1/Command | Derelicts emerged from the dark tunnel 9449 | -1/Command | Welcomed Warlord to Command 9542 | -1/Command | Spotted B-99 Colossus 9543 | -1/Command | Spotted Alpha 7 9543 | -1/Command | Spotted Alpha 7 9543 | -1/Command | Spotted Striker 9543 | -1/Command | Spotted Striker 9543 | -1/Command | Spotted Executioner 9543 | -1/Command | Spotted Executioner 9543 | -1/Command | Spotted Executioner 9543 | -1/Command | Spotted Executioner 9543 | -1/Command | Spotted B-99 Colossus 9570 | -1/Command | Phase Generator disabled 9588 | -1/Command | Destroyed 7 combat bots 9650 | -1/Command | Destroyed B-99 Colossus 9746 | -1/Command | Build established: Wizard-Scout 9892 | -1/Command | Spotted M Guard 9892 | -1/Command | Spotted M Guard 9892 | -1/Command | Spotted Combat Programmer 9892 | -1/Command | Spotted Combat Programmer 9906 | -1/Command | Warlord commented on Warlord statues 9926 | -1/Command | Destroyed M Guard 9930 | -1/Command | Destroyed M Guard 9930 | -1/Command | All MAIN.C guards destroyed 9967 | -1/Command | Found Prototype Energy Cannon 9967 | -1/Command | Identified Cld. Nova Cannon 9984 | -1/Command | Met MAIN.C 9984 | -1/Command | Reached level 36 10148 | -1/Command | Destroyed MAIN.C Shell 10150 | -1/Command | MAIN.C activated Command garrisons 10169 | -1/Command | Destroyed MAIN.C 10173 | -1/Command | Discovered exit to Surface (range 72) 10173 | -1/Command | Discovered exit to Surface (range 61) 10173 | -1/Command | Extracted map data and part IDs from MAIN.C's data core 10179 | -1/Command | Reached level 37 10179 | -1/Command | Interfaced with 0b10 Conduit 10179 | *** | Assimilated 0b10! Last Messages --------------- 10168_ I-47 Archangel distress signal alerts nearby ally. 10169_ Slug penetrates I-47 Archangel. 10169_ Destroyed Exp. Shock Absorption System. 10169_ Molecular Scythe follow-up attack on MAIN.C. 10169_ MAIN.C: "I hope you know you're still going to DIE HERE WITH ME!" 10169_ MAIN.C destroyed. 10171_ C-45 Heavy ARC bursts open, deploying its payload. 10171_ S-43 Plague unfolds itself. 10171_ Sneak attack on C-57 Dissector. 10171_ C-57 Dissector destroyed. 10171_ C-45 Heavy ARC bursts open, deploying its payload. 10171_ L-61 Swordsman unfolds itself. 10171_ G-73 Enforcer unfolds itself. 10171_ I-47 Archangel unfolds itself. 10172_ Acquired 7 matter. 10173_ EXIT=FOUND: SURFACE 10173_ Acquired data core, extracted map data and part IDs. 10179_ Interfacing with system... 10179_ Reached level 37. [Achievement: MAIN.CPP] Map ----- +----------------------------------------------------+ | #### ############################################ | | ### ########################################### | | ## " ########################################### | | ## ########################################### | | ## ########################################### | | ################################################# | | ################################################# | | + ############################################ | | #### ############################################ | | #### ############################################ | | ##### ############################################ | | ##### ############################################ | | ##### ############################################ | | #####+############################################ | | # #####""""""" """" ############### | | # #####"" "" ############### | | # #####""""" "" ############### | | # #####""""""""""" + | | # #####" " """ + | | # #####"" """""" + | | #+### #####"" """""" ############### | | + ##### " """""" ############### | | # ##### " "" ############### | | ###/########## " " ""############### | | ######""""""""" """""""############### | | ######"" @"""""""""############### | | ###### """""""""""############### | | ###### " " " " ############### | | ##+########### " " " " ############### | | " " " """" " ############### | | """ " " """" ############### | | " " " " ############### | | ############## """""""""" " ############### | | ############## " """ " """"""""############### | | ############## """ " " " ############### | | ################################################## | | ############################################## | | ############################################## | | #/#+############################################## | | ########################################## | | ########################################## | | "" ########################################## | | """"########################################## | | """"########################################## | | "" ########################################## | | ########################################## | | ########################################## | | +####+############################################ | | # ######################################### | | # ######################################### | +----------------------------------------------------+ Best States ------------- Heat Dissipation 85 Energy Generation 105 Energy Capacity 700 Matter Stores 500 Matter Capacity 500 Sight Range 18 Robot Scan Range 24 Terrain Scan Range 20 Terrain Scan Density 1010 Jamming Range 22 Cloak Strength 4 EM Shielding 3 Armor Coverage 150 Resistance: KI 55 Resistance: TH 65 Resistance: EX 55 Resistance: EM 35 Resistance: I 35 Resistance: S 35 Resistance: P 35 Propulsion Shielding 33 Utility Shielding 33 Point Defense Rating 480 Melee Speed Boost 50 Phase Shifting 20 Evasion (%) 101 Targeting Accuracy 11 Melee Accuracy 6 Target Analysis 8 Core Analysis 8 Armor Integrity Analysis 50 Force Boost 40 Salvage Targeting 1 Offensive Hacking 125 Defensive Hacking 95 Item Schematics ----------------- Core Analyzer | -7/Factory | Hacked Biomechanical Wings | -7/Data Miner | Free Combat Drone Bay | -7/Data Miner | Free Adv. Shield Generator | -7/Data Miner | Free Enh. Optical Array | -6/Zion | Archive Hvy. Phase Cannon | -6/Zion | Archive Fission Core | -6/Zion | Archive Cloaking Device | -6/Zion | Archive Focal Shield | -6/Zion | Archive Enh. Gauss Cannon | -6/Zion | Archive Lrn. Tractor Beam | -6/Zion | Archive Dispersion Rifle | -6/Zion | Archive Imp. Thermal Shield | -6/Zion | Archive Hvy. Pick | -6/Zion | Archive Adv. Recoil Stabilizer | -6/Zion | Archive Hvy. Plasma Cannon | -6/Zion | Archive Imp. Launcher Guidance Computer | -6/Zion | Archive Lgt. Fission Core | -6/Zion | Archive Myomer Leg | -6/Zion | Archive Molecular Scythe | -3/Research | Scanalyzed Exp. System Shield | -2/Testing | Archive Point Singularity Launcher | -2/Testing | Archive Hvy. Dispersion Rifle | -2/Testing | Archive Cmb. Linear Gravjet | -2/Testing | Hacked Exp. Armor Integrity Analyzer | -1/Access | Hacked Exp. Core Analyzer | -1/Access | Hacked Femtoactuators | -1/Access | Hacked Exp. Actuator Array | -1/Access | Hacked Adv. Force Booster | -1/Access | Hacked Exp. Reaction Control System | -1/Access | Hacked Exp. Phase Shifter | -1/Access | Hacked Adv. Dynamic Insulation System | -1/Access | Hacked Adv. Trap Scanner | -1/Access | Hacked Nanosword | -1/Access | Hacked Robot Schematics ------------------ Y-54 Guardian | -6/Zion | Archive G-47 Trooper | -6/Zion | Archive X-82 Rainmaker | -6/Zion | Archive A-02 Transporter | -2/Testing | Archive B-74 Champion | -2/Testing | Archive Fabricated ------------ Core Analyzer | x2 | -7/Factory Biomechanical Wings | x1 | -6/Factory Biomechanical Wings | x1 | -6/Factory Molecular Scythe | x1 | -3/Research Molecular Scythe | x1 | -3/Research X-82 Rainmaker | x2 | -2/Research X-82 Rainmaker | x2 | -2/Testing Exp. Armor Integrity Analyzer | x1 | -1/Access Exp. Core Analyzer | x1 | -1/Access Adv. Trap Scanner | x2 | -1/Access Femtoactuators | x1 | -1/Access Adv. Force Booster | x2 | -1/Access Exp. Reaction Control System | x1 | -1/Access Exp. Phase Shifter | x1 | -1/Access Repaired ---------- Nothing Studied --------- Great Axe | -6/Factory | Hacked Lgt. Angular Momentum Engine | -6/Factory | Hacked Lance | -3/Research | Hacked Fusion Bomb Launcher | -3/Research | Hacked Impulse Thruster | -3/Research | Hacked Enh. Force Lance | -2/Testing | Hacked Adv. Remote Datajack | -2/Testing | Hacked Alien Tech Used ----------------- None Achievements -------------- Express Service Gladiator MAIN.CPP Production Line Revolutionary Research Challenges ------------ None RPGLIKE | -11 -10 -10 -9 -9 -9 -8 -8 -8 -7 -7 -7 -7 -6 -6 -6 -6 -6 -5 -5 -5 -5 -5 -4 -4 -4 -4 -3 -2 -2 -1 -1 --------- Run | Yrd Mat Min Mat Min Exi Min Mat Sto Fac Low Low Dat Pro Fac Low Low Zio Pro Fac Upp Upp War Pro Fac Ext Cet Res Res Tes Acc Com Levels Raised 36 | . . 1 2 1 . 1 2 3 1 1 1 . 2 1 1 . . 2 . 1 1 . 1 . 1 1 2 2 1 4 3 XP Earned 60115 | 6000 700 1000 3355 1050 200 1582 3758 4103 1650 1000 1288 453 3300 1603 903 530 316 1830 1168 1167 555 338 1353 1049 1463 669 3506 3079 1644 4980 4523 XP Spent 252005 | 20715 41400 . . 12550 . 800 4900 . 6100 . 1100 . 4700 29700 8500 . . . . . 10700 17400 . . . . 17050 960 7100 60730 7600 Upgrades 161 | 65 28 . . 10 . 1 2 . 2 . 1 . 2 12 2 . . . . . 2 3 . . . . 5 6 1 18 1 Power Slot 1 | . . . . . . . . . . . . . . 1 . . . . . . . . . . . . . . . . . Propulsion Slot 3 | 1 2 . . . . . . . . . . . . . . . . . . . . . . . . . . . . . . Utility Slot 15 | 3 . . . 3 . . 2 . 2 . . . . 2 2 . . . . . . 1 . . . . . . . . . Weapon Slot 3 | 1 . . . . . 1 . . . . 1 . . . . . . . . . . . . . . . . . . . . Core Integrity 3 | 3 . . . . . . . . . . . . . . . . . . . . . . . . . . . . . . . Heat Dissipation 10 | 3 . . . . . . . . . . . . . . . . . . . . . . . . . . . 6 . 1 . Energy Generation 10 | . 2 . . . . . . . . . . . . 5 . . . . . . . . . . . . . . . 3 . Matter Storage 4 | 4 . . . . . . . . . . . . . . . . . . . . . . . . . . . . . . . Mass Support 16 | 2 2 . . . . . . . . . . . 2 4 . . . . . . 2 2 . . . . . . 1 . 1 Inventory Capacity 10 | . 5 . . 3 . . . . . . . . . . . . . . . . . . . . . . 2 . . . . Sight Range 2 | 2 . . . . . . . . . . . . . . . . . . . . . . . . . . . . . . . Sensor Range 12 | 12 . . . . . . . . . . . . . . . . . . . . . . . . . . . . . . . Terrain Scan Density 10 | 10 . . . . . . . . . . . . . . . . . . . . . . . . . . . . . . . Ranged Accuracy 4 | . . . . 4 . . . . . . . . . . . . . . . . . . . . . . . . . . . Melee Accuracy 6 | 6 . . . . . . . . . . . . . . . . . . . . . . . . . . . . . . . Hack Attack % 21 | 2 9 . . . . . . . . . . . . . . . . . . . . . . . . . . . . 10 . Hack Defense % 19 | 4 8 . . . . . . . . . . . . . . . . . . . . . . . . . 3 . . 4 . KI Resistance % 4 | 4 . . . . . . . . . . . . . . . . . . . . . . . . . . . . . . . TH Resistance % 4 | 4 . . . . . . . . . . . . . . . . . . . . . . . . . . . . . . . EX Resistance % 4 | 4 . . . . . . . . . . . . . . . . . . . . . . . . . . . . . . . Protomatter Created 5024 | . 84 . . 115 . 50 159 164 . 256 150 . 402 . 80 91 . 132 . 173 237 . 62 . 333 128 244 223 164 743 1034 Integrity Restored 3002 | . 51 10 . 298 . 32 97 177 103 140 13 . 202 . 119 12 . 101 . 190 88 . 136 . 359 91 109 19 64 248 343 Core 1896 | . 47 . . 219 . 17 63 114 69 77 7 . 114 . 32 1 . 55 . 109 34 . 80 . 196 71 70 19 47 195 260 Parts 1106 | . 4 10 . 79 . 15 34 63 34 63 6 . 88 . 87 11 . 46 . 81 54 . 56 . 163 20 39 . 17 53 83 Protomatter Decayed 7657 | . . . . . . . . 219 22 22 25 . 190 . 139 75 . 211 . 205 245 170 50 . 111 60 2012 556 485 562 2298 Game ------ Seed RemoteTowerJets Manual? 0 Play Time 04:10:37 Cumulative 361.9 hours Start 2026.07.22 @ 21:20:57 End 2026.07.25 @ 22:11:52 Sessions 5 Manual Loads 0 Difficulty Explorer Special Mode Winter2019/RPGLIKE Game No. 134 Rogue 0 Adventurer 1 Explorer 133 Win Type 4 Total 32 Types 18/1/6/3/1/1/1/0/1/0 Lore% 80 Gallery% 73 Achievement% 66 Wizard Run 0 Options --------- Layout 0 ASCII 0 Keyboard 1 Movement Numpad Keybinds 0 Fullscreen 2 Font 18/X11 Map View 76x50 Zoom Use 0% Tactical HUD 1 Map Filters BRIGHTNESS(150) Filters NONE Steam 1 RUN: cd37ec86-9050-4594-bd09-40e3e4d0d4b3